Amount,Supplier,Service,Division,Cost Centre,Cost Code,Expenditure Category,Date Paid,Type,Transaction Reference,Dept
"7,056,793.20",Nottinghamshire County Council,Collection Fund,Precepting Authorities,Notts Cc Precept & Ndr Share,5930,Precept Paid,04/02/2019,Collection Fund Accounts,86203,FINANCE & CORPORATE SERVICES
"7,056,793.20",Nottinghamshire County Council,Collection Fund,Precepting Authorities,Notts Cc Precept & Ndr Share,5930,Precept Paid,11/03/2019,Collection Fund Accounts,86204,FINANCE & CORPORATE SERVICES
"829,009.00",Notts Police & Crime Commissioner,Collection Fund,Precepting Authorities,Notts Police Precept & Ndr,5932,Precept Paid,04/02/2019,Collection Fund Accounts,84897,FINANCE & CORPORATE SERVICES
"829,007.44",Notts Police & Crime Commissioner,Collection Fund,Precepting Authorities,Notts Police Precept & Ndr,5932,Precept Paid,11/03/2019,Collection Fund Accounts,84898,FINANCE & CORPORATE SERVICES
"356,501.00",Notts Fire And Rescue Service,Collection Fund,Precepting Authorities,Notts Fire Precept & Ndr,5933,Precept Paid,04/02/2019,Collection Fund Accounts,84885,FINANCE & CORPORATE SERVICES
"139,175.98",Streetwise Environmental Ltd,Neighbourhoods,Waste & Fleet Management,Streetwise Contract,8301,Contractors-Third Party,22/03/2019,Third Party Payments,94362,NEIGHBOURHOODS
"132,468.18",Streetwise Environmental Ltd,Neighbourhoods,Waste & Fleet Management,Streetwise Contract,8301,Contractors-Third Party,23/01/2019,Third Party Payments,92689,NEIGHBOURHOODS
"132,468.18",Streetwise Environmental Ltd,Neighbourhoods,Waste & Fleet Management,Streetwise Contract,8301,Contractors-Third Party,26/02/2019,Third Party Payments,93500,NEIGHBOURHOODS
"76,983.42",Northstone (Ni) Limited,Capital Expenditure,Neighbourhoods,Arena Development,0415,Contractors-Third Party,14/01/2019,Third Party Payments,92367,CAPITAL
"71,469.33",Nottinghamshire County Council,Neighbourhoods,Leisure Contracts & Car Parks,East Leake Leisure Centre,1700,Olas - Notts County Council,31/01/2019,Third Party Payments,92857,FINANCE & CORPORATE SERVICES
"62,586.00",Maverick Industries Ltd,Capital Expenditure,Communties,Skate Park Facilities The Hook,0662,Contractors-Third Party,13/02/2019,Third Party Payments,93443,CAPITAL
"53,159.40",Maverick Industries Ltd,Capital Expenditure,Communties,Skate Park Facilities The Hook,0662,Contractors-Third Party,11/03/2019,Third Party Payments,94244,CAPITAL
"51,587.82",Planning Inspectorate,Communities,Planning Policy,Development Plans,1232,Other Miscellaneous Expenses,20/03/2019,Supplies & Services,94347,COMMUNITIES
"43,341.75",Nottinghamshire County Council,Neighbourhoods,Leisure Contracts & Car Parks,East Leake Leisure Centre,1700,Olas - Notts County Council,26/03/2019,Third Party Payments,94698,FINANCE & CORPORATE SERVICES
"41,769.33",Nottinghamshire County Council,Neighbourhoods,Leisure Contracts & Car Parks,East Leake Leisure Centre,1700,Olas - Notts County Council,20/02/2019,Third Party Payments,93748,FINANCE & CORPORATE SERVICES
"40,825.87",Canal & River Trust,Transformation,Property Services,Grantham Canal,1284,Legal & Professional Services,06/03/2019,Supplies & Services,93685,TRANSFORMATION
"36,228.69",Alpha Heating (Chesterfield) Ltd,Capital Expenditure,Transformation & Innovation,Property Heating Upgrades,0351,Contractors-Third Party,08/03/2019,Third Party Payments,93949,CAPITAL
"28,696.00",Nottingham City Council,Capital Expenditure,Transformation & Innovation,New Depot,0312,Contractors-Third Party,20/03/2019,Third Party Payments,94481,CAPITAL
"27,136.66",Nottingham City Council,Neighbourhoods,Waste & Fleet Management,Garage,8700,Contractors-Transport,29/01/2019,Transport Related Expenditure,93075,NEIGHBOURHOODS
"27,106.96",Thomas Bow Ltd,Capital Expenditure,Transformation & Innovation,Cotgrave Masterplan,0303,Legal & Professional Services,11/03/2019,Supplies & Services,94158,CAPITAL
"26,919.33",Nottinghamshire County Council,Neighbourhoods,Leisure Contracts & Car Parks,East Leake Leisure Centre,1700,Olas - Notts County Council,31/01/2019,Third Party Payments,92777,FINANCE & CORPORATE SERVICES
"24,583.60",Print Image Facilities Llp,Finance & Corporate Services,Democratic Services,Borough Council Elections,1021,Postages,20/03/2019,Supplies & Services,94114,FINANCE & CORPORATE SERVICES
"24,162.12",Nottingham City Council,Neighbourhoods,Waste & Fleet Management,Garage,8700,Contractors-Transport,14/03/2019,Transport Related Expenditure,94257,NEIGHBOURHOODS
"23,906.84",Nottingham City Council,Neighbourhoods,Waste & Fleet Management,Garage,8700,Contractors-Transport,09/01/2019,Transport Related Expenditure,92566,NEIGHBOURHOODS
"23,545.97",Certas Energy T/A Pace Fuelcare,Neighbourhoods,Waste & Fleet Management,Fleet,8600,Diesel,26/02/2019,Transport Related Expenditure,93885,NEIGHBOURHOODS
"23,404.80",Certas Energy T/A Pace Fuelcare,Neighbourhoods,Waste & Fleet Management,Fleet,8600,Diesel,02/01/2019,Transport Related Expenditure,92343,NEIGHBOURHOODS
"23,172.35",Certas Energy T/A Pace Fuelcare,Neighbourhoods,Waste & Fleet Management,Fleet,8600,Diesel,23/01/2019,Transport Related Expenditure,92875,NEIGHBOURHOODS
"22,295.88",Certas Energy T/A Pace Fuelcare,Neighbourhoods,Waste & Fleet Management,Fleet,8600,Diesel,14/03/2019,Transport Related Expenditure,94327,NEIGHBOURHOODS
"21,600.00",Maverick Industries Ltd,Capital Expenditure,Communties,Skate Park Facilities The Hook,0662,Contractors-Third Party,13/02/2019,Third Party Payments,93341,CAPITAL
"20,221.55",Certas Energy T/A Pace Fuelcare,Neighbourhoods,Waste & Fleet Management,Fleet,8600,Diesel,04/02/2019,Transport Related Expenditure,93264,NEIGHBOURHOODS
"20,000.00",South Kesteven D C,Communities,Building Control,Building Control - Fee Earning,1151,Other Local Authorities,26/02/2019,Third Party Payments,93674,COMMUNITIES
"18,421.57",Nottingham City Council,Neighbourhoods,Waste & Fleet Management,Garage,8700,Contractors-Transport,27/03/2019,Transport Related Expenditure,94690,NEIGHBOURHOODS
"18,400.00",Via East Midlands,Capital Expenditure,Transformation & Innovation,Arena Car Park,0336,Contractors-Third Party,01/03/2019,Third Party Payments,93751,CAPITAL
"18,282.00",Commercial Surface Solutions Ltd,Capital Expenditure,Transformation & Innovation,Footpath Enhancements,0943,Contractors-Third Party,06/03/2019,Third Party Payments,93855,CAPITAL
"17,750.00",Gleeds Advisory Ltd,Neighbourhoods,Leisure Contracts & Car Parks,Leisure Management Contract,1795,Feasibility Study,27/03/2019,Supplies & Services,94675,FINANCE & CORPORATE SERVICES
"17,500.00",Gleeds Consulting,Neighbourhoods,Leisure Contracts & Car Parks,Leisure Management Contract,1795,Feasibility Study,31/01/2019,Supplies & Services,92955,FINANCE & CORPORATE SERVICES
"16,837.20",Hmrc,Liabilities,Current Liabilities,Creditors Control Account,5101,Sub Contractors Sums Deducted,26/03/2019,Sub Contractors Sums Deducted,94649,FINANCE & CORPORATE SERVICES
"16,000.00",Parkwood Community Leisure,Transformation,Property Services,Arena Civic Centre,4718,Water Charges,31/01/2019,Premises Related Expenditure,92354,TRANSFORMATION
"15,565.00",Integrity Communications Ltd,Transformation,Ict,It Rechargeable Costs,4722,Maintenance Contracts - S&S,29/01/2019,Supplies & Services,91749,TRANSFORMATION
"14,011.00",Netcall Telecom Limited,Transformation,Ict,It Rechargeable Costs,4722,Maintenance Contracts - S&S,13/02/2019,Supplies & Services,92946,TRANSFORMATION
"13,454.80",Advanced Business Solutions,Transformation,Ict,It Rechargeable Costs,4722,Maintenance Contracts - S&S,29/01/2019,Supplies & Services,90828,TRANSFORMATION
"13,333.33",Parkwood Community Leisure,Transformation,Property Services,Arena Civic Centre,4718,Water Charges,31/01/2019,Premises Related Expenditure,92355,TRANSFORMATION
"13,297.20",Toot Hill School,Neighbourhoods,Leisure Contracts & Car Parks,Leisure Management Contract,1795,Electricity,25/01/2019,Premises Related Expenditure,92830,FINANCE & CORPORATE SERVICES
"12,503.69",East Midlaands Chamber,Transformation,Economic Regeneration,Economic Development,1887,Projects & Activities,13/02/2019,Supplies & Services,93307,TRANSFORMATION
"12,450.00",Bartec Auto Id Ltd,Transformation,Ict,It Rechargeable Costs,4722,Maintenance Contracts - S&S,22/03/2019,Supplies & Services,94007,TRANSFORMATION
"12,267.00",The South Wolds Academy And Sixth Form,Capital Expenditure,Neighbourhoods,Klc Dry Change/Sports Floor,0393,Grants,23/01/2019,Supplies & Services,92582,CAPITAL
"12,143.00",Terry Group Ltd,Capital Expenditure,Neighbourhoods,Disabled Facilities Grant,0332,Grants,09/01/2019,Supplies & Services,92490,CAPITAL
"11,950.00",Iken Business Ltd,Capital Expenditure,Transformation & Innovation,Digital Strategy,0604,Software,08/03/2019,Supplies & Services,93453,CAPITAL
"11,722.00",Trent Valley Plumbing & Build,Capital Expenditure,Neighbourhoods,Disabled Facilities Grant,0332,Grants,20/03/2019,Supplies & Services,94346,CAPITAL
"11,682.14",Toot Hill School,Neighbourhoods,Leisure Contracts & Car Parks,Leisure Management Contract,1795,Gas,27/03/2019,Premises Related Expenditure,94505,FINANCE & CORPORATE SERVICES
"11,644.94",Objective Keystone Ltd,Transformation,Ict,It Rechargeable Costs,4722,Maintenance Contracts - S&S,27/03/2019,Supplies & Services,94323,TRANSFORMATION
"10,827.60",Gee Tee Building Services,Capital Expenditure,Neighbourhoods,Disabled Facilities Grant,0332,Grants,09/01/2019,Supplies & Services,92492,CAPITAL
"10,473.00",Parkwood Community Leisure,Transformation,Property Services,Arena Civic Centre,4718,Gas,31/01/2019,Premises Related Expenditure,92354,TRANSFORMATION
"10,211.36",Broxtowe Borough Council,Neighbourhoods,Strategic Housing,Home Alarms,1137,Partnership Workings,20/03/2019,Supplies & Services,94471,NEIGHBOURHOODS
"10,000.00",Nottingham City Council,Transformation,Economic Regeneration,Economic Development,1887,Olas - Notts County Council,26/03/2019,Third Party Payments,94673,TRANSFORMATION
"10,000.00",Streetwise Environmental Ltd,Communities,Community Development,Environmental Promotion,1590,Legal & Professional Services,26/02/2019,Supplies & Services,93496,COMMUNITIES
"9,705.00",Prism Medical Uk Ltd,Capital Expenditure,Neighbourhoods,Disabled Facilities Grant,0332,Grants,18/01/2019,Supplies & Services,92826,CAPITAL
"9,659.22",Ccs Media,Capital Expenditure,Transformation & Innovation,Ict Replacement Programme,0592,Computer Hardware,21/01/2019,Supplies & Services,92445,CAPITAL
"9,650.00",Via East Midlands,Transformation,Economic Regeneration,Economic Development,1887,Legal & Professional Services,07/01/2019,Supplies & Services,92450,TRANSFORMATION
"9,650.00",Via East Midlands,Transformation,Economic Regeneration,Economic Development,1887,Legal & Professional Services,09/01/2019,Supplies & Services,92593,TRANSFORMATION
"9,321.61",Dta Electrical,Capital Expenditure,Transformation & Innovation,The Point,0360,Contractors-Third Party,22/03/2019,Third Party Payments,94699,CAPITAL
"9,279.06",Notts Police & Crime Commissioner,Transformation,Customer Services,Customer Services,4807,Other Services,27/03/2019,Supplies & Services,94527,TRANSFORMATION
"9,279.06",Notts Police & Crime Commissioner,Transformation,Customer Services,Customer Services,4807,Other Services,27/03/2019,Supplies & Services,94528,TRANSFORMATION
"9,197.15",Gee Tee Building Services,Capital Expenditure,Neighbourhoods,Disabled Facilities Grant,0332,Grants,14/03/2019,Supplies & Services,94250,CAPITAL
"8,727.50",Parkwood Community Leisure,Transformation,Property Services,Arena Civic Centre,4718,Gas,31/01/2019,Premises Related Expenditure,92355,TRANSFORMATION
"8,643.00",Jak Water Systems Ltd,Capital Expenditure,Neighbourhoods,Klc Pool Filter,0394,Other Equipment/Materials,13/02/2019,Supplies & Services,93291,CAPITAL
"8,355.00",Apw (Nottm) Ltd,Capital Expenditure,Neighbourhoods,Disabled Facilities Grant,0332,Grants,26/03/2019,Supplies & Services,94663,CAPITAL
"8,269.20",Simon Ashmore,Capital Expenditure,Transformation & Innovation,Cotgrave Masterplan,0303,Legal & Professional Services,11/03/2019,Supplies & Services,94069,CAPITAL
"8,255.76",Streetwise Environmental Ltd,Neighbourhoods,Environmental Health,Public Health,1127,Legal & Professional Services,06/03/2019,Supplies & Services,70718,NEIGHBOURHOODS
"8,144.95",Toot Hill School,Neighbourhoods,Leisure Contracts & Car Parks,Leisure Management Contract,1795,Electricity,01/03/2019,Premises Related Expenditure,93528,FINANCE & CORPORATE SERVICES
"8,050.00",Savills Uk Limited,Transformation,Property Services,Land Holdings,1884,Legal & Professional Services,27/03/2019,Supplies & Services,94395,TRANSFORMATION
"8,000.00",Nottingham City Council,Communities,Planning Policy,Development Plans,1232,Legal & Professional Services,14/03/2019,Supplies & Services,94318,COMMUNITIES
"7,948.00",Mazars Llp,Finance & Corporate Services,Financial Services,Corporate Management,4895,External Audit Fee,11/01/2019,Supplies & Services,92383,FINANCE & CORPORATE SERVICES
"7,948.00",Mazars Llp,Finance & Corporate Services,Financial Services,Corporate Management,4895,External Audit Fee,27/03/2019,Supplies & Services,94686,FINANCE & CORPORATE SERVICES
"7,937.00",New Dec Interiors Ltd,Capital Expenditure,Neighbourhoods,Disabled Facilities Grant,0332,Grants,20/02/2019,Supplies & Services,93704,CAPITAL
"7,826.07",Fosse Medicare Ltd,Capital Expenditure,Transformation & Innovation,Cotgrave Masterplan,0303,Legal & Professional Services,08/03/2019,Supplies & Services,94096,CAPITAL
"7,500.00",Solutions For Lesisure Ltd,Capital Expenditure,Neighbourhoods,Arena Development,0415,Other Equipment/Materials,04/02/2019,Supplies & Services,92941,CAPITAL
"7,471.00",A R Signs Ltd,Finance & Corporate Services,"Performance, Repn & Comms",Performance And Reputation,4710,External Printing,27/03/2019,Supplies & Services,94651,FINANCE & CORPORATE SERVICES
"6,865.07",Toot Hill School,Neighbourhoods,Leisure Contracts & Car Parks,Leisure Management Contract,1795,Electricity,27/03/2019,Premises Related Expenditure,94505,FINANCE & CORPORATE SERVICES
"6,836.40",Gee Tee Building Services,Capital Expenditure,Neighbourhoods,Disabled Facilities Grant,0332,Grants,09/01/2019,Supplies & Services,92493,CAPITAL
"6,599.25",Bernhard'S Sports Surfaces Limited,Capital Expenditure,Neighbourhoods,Blc Artific Turf Pitch,0395,Contractors-Third Party,26/03/2019,Third Party Payments,94382,CAPITAL
"6,588.00",Office Furniture Online,Transformation,Property Services,Arena Civic Centre,4718,Other Equipment/Materials,20/02/2019,Supplies & Services,91295,TRANSFORMATION
"6,529.52",Trent Valley Plumbing & Build,Capital Expenditure,Neighbourhoods,Disabled Facilities Grant,0332,Grants,20/02/2019,Supplies & Services,93671,CAPITAL
"6,519.69",Tunstall Response Ltd,Neighbourhoods,Strategic Housing,Home Alarms,1137,Other Services,26/02/2019,Supplies & Services,93040,NEIGHBOURHOODS
"6,490.00",Meritec Ltd,Capital Expenditure,Transformation & Innovation,Web Enhancement/Channel Shift,0599,Software,25/01/2019,Supplies & Services,88079,CAPITAL
"6,130.03",Microgen Solutions Ltd,Transformation,Ict,It Rechargeable Costs,4722,Maintenance Contracts - S&S,14/03/2019,Supplies & Services,93975,TRANSFORMATION
"6,083.00",Trent Valley Plumbing & Build,Capital Expenditure,Neighbourhoods,Disabled Facilities Grant,0332,Grants,06/03/2019,Supplies & Services,94011,CAPITAL
"5,834.81",Toot Hill School,Neighbourhoods,Leisure Contracts & Car Parks,Leisure Management Contract,1795,Electricity,29/01/2019,Premises Related Expenditure,92829,FINANCE & CORPORATE SERVICES
"5,795.00",Parsons Containers Ltd,Capital Expenditure,Transformation & Innovation,New Depot,0312,Other Equipment/Materials,25/01/2019,Supplies & Services,92562,CAPITAL
"5,704.03",Local Partnerships,Transformation,Property Services,Land Holdings,1884,Legal & Professional Services,29/01/2019,Supplies & Services,92535,TRANSFORMATION
"5,670.00",Rsm,Finance & Corporate Services,Financial Services,Internal Audit,4708,Legal & Professional Services,06/03/2019,Supplies & Services,93753,FINANCE & CORPORATE SERVICES
"5,594.00",Trent Valley Plumbing & Build,Capital Expenditure,Neighbourhoods,Disabled Facilities Grant,0332,Grants,20/02/2019,Supplies & Services,93673,CAPITAL
"5,500.00",Nottinghamshire County Council,Neighbourhoods,Environmental Health,Anti Social Behaviour,1125,O.L.A Staff,26/03/2019,Employee Related Expenditure,94706,NEIGHBOURHOODS
"5,364.00",Advanced Protection Systems Ltd,Capital Expenditure,Transformation & Innovation,Arena Car Park,0336,Contractors-Third Party,14/01/2019,Third Party Payments,91730,CAPITAL
"5,344.00",Park Avenue,Communities,Planning & Growth,Development Control,1161,Legal & Professional Services,09/01/2019,Supplies & Services,92353,COMMUNITIES
"5,235.00",Cipfa Business Limited,Finance & Corporate Services,Financial Services,Financial Services,4705,Subscriptions,18/02/2019,Supplies & Services,93234,FINANCE & CORPORATE SERVICES
"5,231.33",Nottingham City Council (Income),Liabilities,Long Term Liabilities,12/01380 Bus Service Prov Wb,6741,Balance Sheet Exp In The Year,27/02/2019,Balance Sheet Exp In The Year,93809,FINANCE & CORPORATE SERVICES
"5,217.94",The South Wolds Academy And Sixth Form,Neighbourhoods,Leisure Contracts & Car Parks,Leisure Management Contract,1795,Premises Rents,13/02/2019,Premises Related Expenditure,93440,FINANCE & CORPORATE SERVICES
"5,182.22",Toot Hill School,Neighbourhoods,Leisure Contracts & Car Parks,Leisure Management Contract,1795,Gas,25/01/2019,Premises Related Expenditure,92830,FINANCE & CORPORATE SERVICES
"5,026.45",Clearway (Midlands) Ltd,Neighbourhoods,Leisure Contracts & Car Parks,Car Parks,1900,Responsive Works - Buildings,23/01/2019,Premises Related Expenditure,92953,FINANCE & CORPORATE SERVICES
"5,000.00",Active Partners Trust Ltd,Finance & Corporate Services,Financial Services,Suspense No Code,5224,Returned Creditors,13/02/2019,Returned Creditors,93372,FINANCE & CORPORATE SERVICES
"4,991.73",Toot Hill School,Neighbourhoods,Leisure Contracts & Car Parks,Leisure Management Contract,1795,Gas,01/03/2019,Premises Related Expenditure,93528,FINANCE & CORPORATE SERVICES
"4,987.00",Tr Hartley Ltd,Capital Expenditure,Neighbourhoods,Disabled Facilities Grant,0332,Grants,31/01/2019,Supplies & Services,93103,CAPITAL
"4,962.47",Parkwood Leisure Ltd,Transformation,Property Services,Arena Civic Centre,4718,Electricity,26/03/2019,Premises Related Expenditure,94267,TRANSFORMATION
"4,882.25",Ideagen Gael Ltd,Transformation,Ict,It Rechargeable Costs,4722,Maintenance Contracts - S&S,18/02/2019,Supplies & Services,93418,TRANSFORMATION
"4,822.00",Total Bathing,Capital Expenditure,Neighbourhoods,Disabled Facilities Grant,0332,Grants,06/03/2019,Supplies & Services,94009,CAPITAL
"4,807.99",Royal Mail Group Ltd,Transformation,Bsu,Central Mail,4871,Postages,20/03/2019,Supplies & Services,94053,TRANSFORMATION
"4,733.77",Parkwood Community Leisure,Transformation,Property Services,Arena Civic Centre,4718,Electricity,21/01/2019,Premises Related Expenditure,92491,TRANSFORMATION
"4,718.00",Total Bathing,Capital Expenditure,Neighbourhoods,Disabled Facilities Grant,0332,Grants,08/03/2019,Supplies & Services,94008,CAPITAL
"4,695.00",Fixfire,Communities,Community Development,Sir Julien Cahn Pavilion,8993,Planned Maintenance Recharge,22/03/2019,Supplies & Services,94112,COMMUNITIES
"4,660.00",Dolphin Mobility East Mids Ltd,Capital Expenditure,Neighbourhoods,Disabled Facilities Grant,0332,Grants,20/03/2019,Supplies & Services,94242,CAPITAL
"4,644.00",Advanced Protection Systems Ltd,Capital Expenditure,Transformation & Innovation,Arena Car Park,0336,Contractors-Third Party,18/01/2019,Third Party Payments,92357,CAPITAL
"4,611.00",Trent Valley Plumbing & Build,Capital Expenditure,Neighbourhoods,Disabled Facilities Grant,0332,Grants,20/02/2019,Supplies & Services,93706,CAPITAL
"4,551.80",Axess Systems Ltd,Transformation,Ict,It Rechargeable Costs,4722,Maintenance Contracts - S&S,06/03/2019,Supplies & Services,94000,TRANSFORMATION
"4,452.00",Trent Valley Plumbing & Build,Capital Expenditure,Neighbourhoods,Disabled Facilities Grant,0332,Grants,20/02/2019,Supplies & Services,93705,CAPITAL
"4,441.80",Amptron Electrical Services Ltd,Neighbourhoods,Leisure Contracts & Car Parks,Leisure Management Contract,1795,Responsive Works - Buildings,09/01/2019,Premises Related Expenditure,92155,FINANCE & CORPORATE SERVICES
"4,330.00",Apw (Nottm) Ltd,Capital Expenditure,Neighbourhoods,Disabled Facilities Grant,0332,Grants,20/02/2019,Supplies & Services,93672,CAPITAL
"4,312.00",Lodge Tyre Co.Ltd,Neighbourhoods,Waste & Fleet Management,Waste Collection,8403,Tyres,08/03/2019,Transport Related Expenditure,94080,NEIGHBOURHOODS
"4,190.00",Carlin Construction Contracting Limited,Capital Expenditure,Neighbourhoods,Arena Development,0415,Contractors-Third Party,04/02/2019,Third Party Payments,92990,CAPITAL
"4,171.69",Toot Hill School,Neighbourhoods,Leisure Contracts & Car Parks,Leisure Management Contract,1795,Gas,29/01/2019,Premises Related Expenditure,92829,FINANCE & CORPORATE SERVICES
"4,161.85",Via East Midlands,Communities,Planning Policy,Land Charges,1033,Other Services,01/03/2019,Supplies & Services,92970,COMMUNITIES
"4,150.00",Vinshire Plumbing & Heating Limited,Capital Expenditure,Communties,Warm Homes On Prescription,0337,Grants,20/03/2019,Supplies & Services,94330,CAPITAL
"4,119.75",Esri (Uk) Ltd,Transformation,Ict,It Rechargeable Costs,4722,Maintenance Contracts - S&S,27/03/2019,Supplies & Services,94476,TRANSFORMATION
"4,110.00",Lodge Tyre Co.Ltd,Neighbourhoods,Waste & Fleet Management,Waste Collection,8403,Tyres,13/02/2019,Transport Related Expenditure,93368,NEIGHBOURHOODS
"4,076.10",Blachere Illumination Uk Ltd,Transformation,Economic Regeneration,West Bridgford Town Centre,1875,Other Services,13/02/2019,Supplies & Services,93076,TRANSFORMATION
"4,047.18",Parkwood Community Leisure,Transformation,Property Services,Arena Civic Centre,4718,Electricity,11/03/2019,Premises Related Expenditure,93856,TRANSFORMATION
"4,000.00",East Leake Parish Council,Communities,Community Development,Recreational Open Spaces,1280,Grounds Maintenance,31/01/2019,Premises Related Expenditure,92952,COMMUNITIES
"3,974.00",Water Centres Ltd,Capital Expenditure,Neighbourhoods,Disabled Facilities Grant,0332,Grants,02/01/2019,Supplies & Services,91746,CAPITAL
"3,939.00",P J Lilley Limited,Capital Expenditure,Neighbourhoods,Arena Development,0415,Contractors-Third Party,26/03/2019,Third Party Payments,79358,CAPITAL
"3,915.00",Tunstall Response Ltd,Neighbourhoods,Strategic Housing,Home Alarms,1137,Other Equipment/Materials,26/02/2019,Supplies & Services,93422,NEIGHBOURHOODS
"3,869.12",Trent Valley Plumbing & Build,Capital Expenditure,Neighbourhoods,Disabled Facilities Grant,0332,Grants,20/03/2019,Supplies & Services,94350,CAPITAL
"3,860.50",Bt Telephone Payment Centre,Transformation,Ict,It Rechargeable Costs,4722,Maintenance Contracts - S&S,26/02/2019,Supplies & Services,93737,TRANSFORMATION
"3,844.50",Imtech G&H Ltd,Neighbourhoods,Waste & Fleet Management,Abbey Road Depot,4001,Planned Maintenance Recharge,26/02/2019,Supplies & Services,93687,NEIGHBOURHOODS
"3,815.00",Imtech G&H Ltd,Neighbourhoods,Waste & Fleet Management,Abbey Road Depot,4001,Planned Maintenance Recharge,16/01/2019,Supplies & Services,92597,NEIGHBOURHOODS
"3,785.00",Trent Valley Plumbing & Build,Capital Expenditure,Neighbourhoods,Disabled Facilities Grant,0332,Grants,02/01/2019,Supplies & Services,91745,CAPITAL
"3,696.00",Hill Bros (Nottingham) Ltd,Capital Expenditure,Neighbourhoods,Disabled Facilities Grant,0332,Grants,13/02/2019,Supplies & Services,93482,CAPITAL
"3,665.96",Royal Mail Group Ltd,Transformation,Bsu,Central Mail,4871,Postages,18/02/2019,Supplies & Services,93281,TRANSFORMATION
"3,624.50",Parkwood Community Leisure,Transformation,Property Services,Arena Civic Centre,4718,Electricity,27/03/2019,Premises Related Expenditure,94676,TRANSFORMATION
"3,475.00",Institute Of Directors,Finance & Corporate Services,Emt & Transformation,Executive Management Team,4721,Training Expenses,25/01/2019,Employee Related Expenditure,92951,FINANCE & CORPORATE SERVICES
"3,400.00",Verisec Ltd,Transformation,Ict,It Rechargeable Costs,4722,Maintenance Contracts - S&S,27/03/2019,Supplies & Services,94475,TRANSFORMATION
"3,345.00",Trent Valley Plumbing & Build,Capital Expenditure,Neighbourhoods,Disabled Facilities Grant,0332,Grants,13/02/2019,Supplies & Services,93459,CAPITAL
"3,291.25",Stage Connections Ltd,Communities,Community Development,Community Development,1581,Projects & Activities,18/01/2019,Supplies & Services,92853,COMMUNITIES
"3,258.00",Site Rescue (Leeds Office),Communities,Community Development,Tour Of Britain 2018,1583,Projects & Activities,20/03/2019,Supplies & Services,94487,COMMUNITIES
"3,240.00",A R Signs Ltd,Capital Expenditure,Transformation & Innovation,Cotgrave Masterplan,0303,Legal & Professional Services,07/01/2019,Supplies & Services,92193,CAPITAL
"3,227.28",Reach Publishing Services Limited,Finance & Corporate Services,Revenues & Benefits,Council Tax,1045,Legal & Professional Services,22/03/2019,Supplies & Services,94657,FINANCE & CORPORATE SERVICES
"3,209.20",Midland Regional Printers Ltd,Finance & Corporate Services,"Performance, Repn & Comms",Performance And Reputation,4710,External Printing,01/03/2019,Supplies & Services,93493,FINANCE & CORPORATE SERVICES
"3,195.84",Lewis Davey Ltd,Communities,Planning & Growth,Development Control,1161,Employee Advertising,26/03/2019,Employee Related Expenditure,93980,COMMUNITIES
"3,150.00",Rsm,Finance & Corporate Services,Financial Services,Internal Audit,4708,Legal & Professional Services,31/01/2019,Supplies & Services,92991,FINANCE & CORPORATE SERVICES
"3,136.00",A R Signs Ltd,Finance & Corporate Services,"Performance, Repn & Comms",Performance And Reputation,4710,External Printing,11/03/2019,Supplies & Services,93842,FINANCE & CORPORATE SERVICES
"3,118.00",Trent Valley Plumbing & Build,Capital Expenditure,Neighbourhoods,Disabled Facilities Grant,0332,Grants,06/03/2019,Supplies & Services,94004,CAPITAL
"3,050.19",Local Government Association,Transformation,Human Resources,Corporate Training,4893,Training Expenses,02/01/2019,Employee Related Expenditure,91590,TRANSFORMATION
"3,050.00",Via East Midlands,Capital Expenditure,Communties,Skateboard Parks,0667,Legal & Professional Services,26/02/2019,Supplies & Services,93604,CAPITAL
"2,993.40",Carole Crookes,Communities,Planning Policy,Development Plans,1232,Other Miscellaneous Expenses,31/01/2019,Supplies & Services,92560,COMMUNITIES
"2,982.33",Arup,Transformation,Economic Regeneration,Economic Development,1887,Other Services,25/01/2019,Supplies & Services,92439,TRANSFORMATION
"2,950.00",Ps Tax,Finance & Corporate Services,Financial Services,Financial Services,4705,Legal & Professional Services,27/03/2019,Supplies & Services,94683,FINANCE & CORPORATE SERVICES
"2,902.04",Frontline Recruitment Ltd,Neighbourhoods,Waste & Fleet Management,Waste Collection,8403,Agency Staff,31/01/2019,Employee Related Expenditure,92869,NEIGHBOURHOODS
"2,900.00",Apw (Nottm) Ltd,Capital Expenditure,Neighbourhoods,Disabled Facilities Grant,0332,Grants,14/01/2019,Supplies & Services,92675,CAPITAL
"2,900.00",Cipfa Business Limited,Finance & Corporate Services,Financial Services,Financial Services,4705,Subscriptions,18/02/2019,Supplies & Services,93159,FINANCE & CORPORATE SERVICES
"2,862.32",Frontline Recruitment Ltd,Neighbourhoods,Waste & Fleet Management,Waste Collection,8403,Agency Staff,04/02/2019,Employee Related Expenditure,93231,NEIGHBOURHOODS
"2,840.00",Dreambuilder,Capital Expenditure,Neighbourhoods,Disabled Facilities Grant,0332,Grants,09/01/2019,Supplies & Services,92489,CAPITAL
"2,805.50",Lodge Tyre Co.Ltd,Neighbourhoods,Waste & Fleet Management,Waste Collection,8403,Tyres,09/01/2019,Transport Related Expenditure,92553,NEIGHBOURHOODS
"2,802.00",Vinshire Plumbing & Heating Limited,Capital Expenditure,Communties,Warm Homes On Prescription,0337,Grants,01/03/2019,Supplies & Services,93529,CAPITAL
"2,800.00",Envitech Europe Ltd,Neighbourhoods,Environmental Health,Pollution Control,1050,Subscriptions,08/03/2019,Supplies & Services,94154,NEIGHBOURHOODS
"2,721.00",A R Signs Ltd,Finance & Corporate Services,"Performance, Repn & Comms",Performance And Reputation,4710,External Printing,22/03/2019,Supplies & Services,94650,FINANCE & CORPORATE SERVICES
"2,720.82",Frontline Recruitment Ltd,Neighbourhoods,Waste & Fleet Management,Waste Collection,8403,Agency Staff,20/03/2019,Employee Related Expenditure,94461,NEIGHBOURHOODS
"2,695.00",Lg Futures,Finance & Corporate Services,Financial Services,Financial Services,4705,Subscriptions,20/02/2019,Supplies & Services,93616,FINANCE & CORPORATE SERVICES
"2,670.00",Broxtowe Borough Council,Neighbourhoods,Leisure Contracts & Car Parks,Car Parks,1900,Maintenance Contracts - S&S,31/01/2019,Supplies & Services,93102,FINANCE & CORPORATE SERVICES
"2,640.04",Royal Mail Group Ltd,Transformation,Bsu,Central Mail,4871,Postages,27/03/2019,Supplies & Services,94544,TRANSFORMATION
"2,617.16",British Gas Business,Neighbourhoods,Waste & Fleet Management,Abbey Road Depot,4001,Electricity,13/02/2019,Premises Related Expenditure,93430,NEIGHBOURHOODS
"2,610.00",Nottinghamshire County Council,Communities,Planning Policy,Land Charges,1033,Other Services,26/02/2019,Supplies & Services,93747,COMMUNITIES
"2,608.00",Access Doors Ltd,Communities,Community Development,Sir Julien Cahn Pavilion,8993,Planned Maintenance Recharge,01/03/2019,Supplies & Services,93853,COMMUNITIES
"2,584.95",Brian Cooper Architect,Capital Expenditure,Neighbourhoods,Disabled Facilities Grant,0332,Grants,14/03/2019,Supplies & Services,94252,CAPITAL
"2,565.00",Matts Monitors Ltd,Neighbourhoods,Environmental Health,Pollution Control,1050,Other Miscellaneous Expenses,31/01/2019,Supplies & Services,92663,NEIGHBOURHOODS
"2,510.20",Print Image Facilities Llp,Finance & Corporate Services,Democratic Services,Borough Council Elections,1021,Postages,26/03/2019,Supplies & Services,94677,FINANCE & CORPORATE SERVICES
"2,503.05",Brian Cooper Architect,Capital Expenditure,Neighbourhoods,Disabled Facilities Grant,0332,Grants,14/03/2019,Supplies & Services,94251,CAPITAL
"2,500.00",Active Partners Trust Ltd,Communities,Community Development,Sports Development,1593,Projects & Activities,11/01/2019,Supplies & Services,92666,COMMUNITIES
"2,444.20",Ep Consulting Building Services Engineers,Capital Expenditure,Transformation & Innovation,Cotgrave Masterplan,0303,Legal & Professional Services,13/02/2019,Supplies & Services,93381,CAPITAL
"2,440.20",Ep Consulting Building Services Engineers,Capital Expenditure,Transformation & Innovation,Cotgrave Masterplan,0303,Legal & Professional Services,20/02/2019,Supplies & Services,93261,CAPITAL
"2,439.68",Royal Mail Group Ltd,Transformation,Bsu,Central Mail,4871,Postages,27/03/2019,Supplies & Services,94349,TRANSFORMATION
"2,425.56",Stanley Security Solutions,Neighbourhoods,Waste & Fleet Management,Abbey Road Depot,4001,Legal & Professional Services,20/03/2019,Supplies & Services,93740,NEIGHBOURHOODS
"2,415.00",Nottingham City Council,Neighbourhoods,Waste & Fleet Management,Waste Collection,8403,Training Expenses,02/01/2019,Employee Related Expenditure,92385,NEIGHBOURHOODS
"2,400.00",Streetwise Environmental Ltd,Transformation,Property Services,"Colliers, Cotgrave",1898,Legal & Professional Services,23/01/2019,Supplies & Services,92600,TRANSFORMATION
"2,380.00",Axess Systems Ltd,Transformation,Ict,It Rechargeable Costs,4722,Maintenance Contracts - S&S,08/03/2019,Supplies & Services,93999,TRANSFORMATION
"2,379.07",Severn Trent Water,Neighbourhoods,Waste & Fleet Management,Abbey Road Depot,4001,Sewerage & Environmental,14/03/2019,Premises Related Expenditure,94239,NEIGHBOURHOODS
"2,338.85",Eon,Transformation,Property Services,New Offices - Cotgrave,4798,Electricity,27/03/2019,Premises Related Expenditure,94222,TRANSFORMATION
"2,332.60",Trent Valley Plumbing & Build,Capital Expenditure,Neighbourhoods,Disabled Facilities Grant,0332,Grants,20/03/2019,Supplies & Services,94345,CAPITAL
"2,308.73",Frontline Recruitment Ltd,Neighbourhoods,Waste & Fleet Management,Waste Collection,8403,Agency Staff,06/03/2019,Employee Related Expenditure,94005,NEIGHBOURHOODS
"2,279.69",British Gas Business,Neighbourhoods,Waste & Fleet Management,Abbey Road Depot,4001,Electricity,08/03/2019,Premises Related Expenditure,94163,NEIGHBOURHOODS
"2,272.39",Obam Lift Services Ltd,Capital Expenditure,Neighbourhoods,Disabled Facilities Grant,0332,Grants,25/01/2019,Supplies & Services,93030,CAPITAL
"2,230.75",British Gas Business,Neighbourhoods,Waste & Fleet Management,Abbey Road Depot,4001,Electricity,18/01/2019,Premises Related Expenditure,92506,NEIGHBOURHOODS
"2,229.29",Frontline Recruitment Ltd,Neighbourhoods,Waste & Fleet Management,Waste Collection,8403,Agency Staff,08/03/2019,Employee Related Expenditure,93607,NEIGHBOURHOODS
"2,209.33",Maltby & Company,Capital Expenditure,Neighbourhoods,Arena Development,0415,Contractors-Third Party,04/02/2019,Third Party Payments,93002,CAPITAL
"2,200.00",Fisher Hargreaves Proctor,Transformation,Property Services,Hollygate Lane Ph3 (Manvers),1897,Legal & Professional Services,27/03/2019,Supplies & Services,94545,TRANSFORMATION
"2,175.03",Notts County Cricket Club,Finance & Corporate Services,Democratic Services,Mayoral Expenses,1001,Catering Provisions,26/03/2019,Supplies & Services,94752,FINANCE & CORPORATE SERVICES
"2,144.55",Vodafone,Transformation,Ict,It Rechargeable Costs,4722,Maintenance Contracts - S&S,29/01/2019,Supplies & Services,92722,TRANSFORMATION
"2,142.00",Aegis Technologies Ltd,Capital Expenditure,Transformation & Innovation,Multi Service Centre,0348,Legal & Professional Services,13/02/2019,Supplies & Services,93454,CAPITAL
"2,122.54",Frontline Recruitment Ltd,Neighbourhoods,Waste & Fleet Management,Waste Collection,8403,Agency Staff,31/01/2019,Employee Related Expenditure,93068,NEIGHBOURHOODS
"2,050.00",Asbestos Management Solutions Limited,Capital Expenditure,Transformation & Innovation,Cotgrave Phase 2,0387,Legal & Professional Services,13/02/2019,Supplies & Services,93535,CAPITAL
"2,016.00",Phoenix Software,Transformation,Ict,It Rechargeable Costs,4722,Maintenance Contracts - S&S,16/01/2019,Supplies & Services,92391,TRANSFORMATION
"2,003.38",Frontline Recruitment Ltd,Neighbourhoods,Waste & Fleet Management,Waste Collection,8403,Agency Staff,27/03/2019,Employee Related Expenditure,94695,NEIGHBOURHOODS
"2,000.00",Bentley Project Management,Capital Expenditure,Transformation & Innovation,Cotgrave Masterplan,0303,Legal & Professional Services,18/01/2019,Supplies & Services,92446,CAPITAL
"2,000.00",Bentley Project Management,Capital Expenditure,Transformation & Innovation,Cotgrave Masterplan,0303,Legal & Professional Services,18/02/2019,Supplies & Services,93262,CAPITAL
"2,000.00",Bentley Project Management,Capital Expenditure,Transformation & Innovation,Cotgrave Masterplan,0303,Legal & Professional Services,20/03/2019,Supplies & Services,94108,CAPITAL
"2,000.00",Kilworth Grange Management Services Ltd,Transformation,Customer Services,Customer Services,4807,Legal & Professional Services,29/01/2019,Supplies & Services,92561,TRANSFORMATION
"2,000.00",Kilworth Grange Management Services Ltd,Transformation,Customer Services,Customer Services,4807,Legal & Professional Services,13/02/2019,Supplies & Services,93113,TRANSFORMATION
"1,990.00",Red Umbrella,Transformation,Human Resources,Corporate Training,4893,Training Expenses,31/01/2019,Employee Related Expenditure,93082,TRANSFORMATION
"1,987.50",Leeza Surman,Neighbourhoods,Environmental Health,Food Hygiene,1054,Contractors-Supplies & Servs,06/02/2019,Supplies & Services,93347,NEIGHBOURHOODS
"1,986.67",Staddon & Sons (Nottingham Ltd),Neighbourhoods,Strategic Housing,Hostel Hound Lodge,1111,Other Equipment/Materials,27/02/2019,Supplies & Services,93447,NEIGHBOURHOODS
"1,970.77",Maltby & Company,Capital Expenditure,Neighbourhoods,Arena Development,0415,Contractors-Third Party,04/02/2019,Third Party Payments,92999,CAPITAL
"1,969.50",P J Lilley Limited,Capital Expenditure,Neighbourhoods,Arena Development,0415,Contractors-Third Party,26/03/2019,Third Party Payments,94662,CAPITAL
"1,950.00",Allan Joyce Architects Ltd,Capital Expenditure,Transformation & Innovation,Cotgrave Masterplan,0303,Legal & Professional Services,22/03/2019,Supplies & Services,94231,CAPITAL
"1,950.00",Origin Surveys Limited,Transformation,Property Services,Land Holdings,1884,Legal & Professional Services,22/03/2019,Supplies & Services,94661,TRANSFORMATION
"1,950.00",Trevor Roberts Associates Ltd,Transformation,Human Resources,Corporate Training,4893,Training Expenses,01/03/2019,Employee Related Expenditure,93756,TRANSFORMATION
"1,944.00",Obam Lift Services Ltd,Capital Expenditure,Neighbourhoods,Disabled Facilities Grant,0332,Grants,25/01/2019,Supplies & Services,93031,CAPITAL
"1,938.20",Water Plus,Neighbourhoods,Waste & Fleet Management,Abbey Road Depot,4001,Sewerage & Environmental,18/01/2019,Premises Related Expenditure,92721,NEIGHBOURHOODS
"1,930.00",Volute Limited,Communities,Community Development,Young - European Project,1044,Projects & Activities,13/02/2019,Supplies & Services,91966,COMMUNITIES
"1,910.00",Candor Care Limited - Accounts Department,Capital Expenditure,Neighbourhoods,Disabled Facilities Grant,0332,Grants,20/03/2019,Supplies & Services,94243,CAPITAL
"1,909.94",Groundsman Tools And Supplies Llp,Neighbourhoods,Waste & Fleet Management,Abbey Road Depot,4001,Other Equipment/Materials,23/01/2019,Supplies & Services,92948,NEIGHBOURHOODS
"1,900.00",Maltby & Company,Transformation,Property Services,The Point,1886,Planned Maintenance Recharge,16/01/2019,Supplies & Services,92538,TRANSFORMATION
"1,896.00",Advanced Protection Systems Ltd,Capital Expenditure,Transformation & Innovation,Arena Car Park,0336,Contractors-Third Party,14/01/2019,Third Party Payments,92375,CAPITAL
"1,889.00",Blachere Illumination Uk Ltd,Transformation,Economic Regeneration,West Bridgford Town Centre,1875,Other Services,23/01/2019,Supplies & Services,92599,TRANSFORMATION
"1,887.00",Cut And Curl,Transformation,Economic Regeneration,Economic Development,1887,Grants,14/03/2019,Supplies & Services,94332,TRANSFORMATION
"1,881.37",Pnltools Limited,Transformation,Ict,It Rechargeable Costs,4722,Maintenance Contracts - S&S,16/01/2019,Supplies & Services,92154,TRANSFORMATION
"1,875.01",Nsl Limited,Neighbourhoods,Leisure Contracts & Car Parks,Car Parks,1900,Maintenance Contracts - S&S,18/01/2019,Supplies & Services,92451,FINANCE & CORPORATE SERVICES
"1,850.00",Axess Systems Ltd,Transformation,Ict,It Rechargeable Costs,4722,Maintenance Contracts - S&S,11/03/2019,Supplies & Services,93841,TRANSFORMATION
"1,848.00",Portalplanquest Limited,Communities,Planning & Growth,Development Control,1161,Fees & Charges - General,26/03/2019,Income,94688,COMMUNITIES
"1,805.00",Cipfa Business Limited,Finance & Corporate Services,Financial Services,Financial Services,4705,Subscriptions,18/02/2019,Supplies & Services,93157,FINANCE & CORPORATE SERVICES
"1,800.00",Ludlow Hill Mot Centre,Neighbourhoods,Environmental Health,Hackney Carriage/Private Hire,1031,Contractors-Transport,13/02/2019,Transport Related Expenditure,93431,NEIGHBOURHOODS
"1,791.54",Electoral Reform Services,Finance & Corporate Services,Democratic Services,Electoral Registration,1026,Postages,11/03/2019,Supplies & Services,94060,FINANCE & CORPORATE SERVICES
"1,776.00",Parkwood Leisure Ltd,Neighbourhoods,Leisure Contracts & Car Parks,Leisure Management Contract,1795,D.B.S Checks - Employees,04/02/2019,Employee Related Expenditure,92828,FINANCE & CORPORATE SERVICES
"1,773.44",Nsl Limited,Neighbourhoods,Leisure Contracts & Car Parks,Car Parks,1900,Maintenance Contracts - S&S,18/02/2019,Supplies & Services,93232,FINANCE & CORPORATE SERVICES
"1,768.00",Hmrc,Finance & Corporate Services,Financial Services,Apprenticeship Levy,1043,Other Services,20/03/2019,Supplies & Services,94536,FINANCE & CORPORATE SERVICES
"1,760.00",Iken Business Ltd,Transformation,Ict,It Rechargeable Costs,4722,Maintenance Contracts - S&S,08/03/2019,Supplies & Services,93453,TRANSFORMATION
"1,755.00",Hmrc,Finance & Corporate Services,Financial Services,Apprenticeship Levy,1043,Other Services,20/02/2019,Supplies & Services,93724,FINANCE & CORPORATE SERVICES
"1,722.00",Hmrc,Finance & Corporate Services,Financial Services,Apprenticeship Levy,1043,Other Services,06/02/2019,Supplies & Services,93243,FINANCE & CORPORATE SERVICES
"1,721.87",Eon,Transformation,Economic Regeneration,Msc - Main Building,1876,Electricity,27/03/2019,Premises Related Expenditure,94221,TRANSFORMATION
"1,717.89",Frontline Recruitment Ltd,Neighbourhoods,Waste & Fleet Management,Waste Collection,8403,Agency Staff,14/03/2019,Employee Related Expenditure,94241,NEIGHBOURHOODS
"1,715.41",Frontline Recruitment Ltd,Neighbourhoods,Waste & Fleet Management,Waste Collection,8403,Agency Staff,13/02/2019,Employee Related Expenditure,93442,NEIGHBOURHOODS
"1,713.40",Bright Space Solutions Ltd,Finance & Corporate Services,Emt & Transformation,Executive Management Team,4721,Training Expenses,20/03/2019,Employee Related Expenditure,94216,FINANCE & CORPORATE SERVICES
"1,704.22",Nsl Limited,Neighbourhoods,Leisure Contracts & Car Parks,Car Parks,1900,Maintenance Contracts - S&S,20/03/2019,Supplies & Services,94054,FINANCE & CORPORATE SERVICES
"1,691.25",Hodson Specialist Contractors,Neighbourhoods,Leisure Contracts & Car Parks,Leisure Management Contract,1795,Responsive Works - Buildings,11/01/2019,Premises Related Expenditure,92688,FINANCE & CORPORATE SERVICES
"1,680.00",Parkwood Community Leisure,Neighbourhoods,Leisure Contracts & Car Parks,Leisure Management Contract,1795,D.B.S Checks - Employees,27/03/2019,Employee Related Expenditure,94749,FINANCE & CORPORATE SERVICES
"1,680.00",Vinshire Plumbing & Heating Limited,Capital Expenditure,Communties,Warm Homes On Prescription,0337,Grants,09/01/2019,Supplies & Services,92603,CAPITAL
"1,664.25",Royal Mail Group Ltd,Transformation,Bsu,Central Mail,4871,Postages,31/01/2019,Supplies & Services,92872,TRANSFORMATION
"1,650.00",Nottingham City Council,Finance & Corporate Services,Democratic Services,Members Services,1000,Training Expenses,07/01/2019,Employee Related Expenditure,86214,FINANCE & CORPORATE SERVICES
"1,640.00",Daykin Floor Renovation Ltd,Communities,Community Development,Lutterell Hall,8990,Service Maintenance Contracts,13/02/2019,Premises Related Expenditure,93158,COMMUNITIES
"1,624.00",Egbert H Taylor & Co Ltd,Neighbourhoods,Waste & Fleet Management,Glass Recycling & Bring Sites,8407,Other Equipment/Materials,11/03/2019,Supplies & Services,93822,NEIGHBOURHOODS
"1,615.00",Dolphin Mobility East Mids Ltd,Capital Expenditure,Neighbourhoods,Disabled Facilities Grant,0332,Grants,18/01/2019,Supplies & Services,92782,CAPITAL
"1,614.61",Royal Mail Group Ltd,Transformation,Bsu,Central Mail,4871,Postages,11/03/2019,Supplies & Services,93942,TRANSFORMATION
"1,608.00",Attenborough Industrial Doors,Capital Expenditure,Transformation & Innovation,Cotgrave Masterplan,0303,Legal & Professional Services,04/02/2019,Supplies & Services,92969,CAPITAL
"1,605.30",P.Waller (Decorators) Ltd,Communities,Community Development,Gamston Community Hall,8992,Responsive Works - Buildings,11/01/2019,Premises Related Expenditure,91552,COMMUNITIES
"1,600.00",Tunstall Response Ltd,Capital Expenditure,Neighbourhoods,Assistive Technology,0335,Grants,26/02/2019,Supplies & Services,93422,CAPITAL
"1,592.70",Severn Trent Water,Neighbourhoods,Strategic Housing,Hostel Hound Lodge,1111,Water Charges,09/01/2019,Premises Related Expenditure,92401,NEIGHBOURHOODS
"1,583.84",Frontline Recruitment Ltd,Neighbourhoods,Waste & Fleet Management,Waste Collection,8403,Agency Staff,08/03/2019,Employee Related Expenditure,93817,NEIGHBOURHOODS
"1,575.00",University Of The West Of England,Communities,Planning & Growth,Development Control,1161,Training Expenses,31/01/2019,Employee Related Expenditure,92727,COMMUNITIES
"1,562.00",Dta Electrical,Communities,Community Development,Gresham,8950,Planned Maintenance Recharge,26/02/2019,Supplies & Services,93375,COMMUNITIES
"1,551.50",Freeths Llp,Capital Expenditure,Transformation & Innovation,Multi Service Centre,0348,Legal & Professional Services,14/03/2019,Supplies & Services,94259,CAPITAL
"1,539.00",1st Ruddington Scout Group,Finance & Corporate Services,Democratic Services,Members Services,1000,Grants,14/03/2019,Supplies & Services,94164,FINANCE & CORPORATE SERVICES
"1,534.20",Nottingham City Council,Transformation,Human Resources,Corporate Training,4893,Training Expenses,31/01/2019,Employee Related Expenditure,93155,TRANSFORMATION
"1,530.00",Nottinghamshire County Council,Communities,Planning Policy,Land Charges,1033,Other Services,26/02/2019,Supplies & Services,93749,COMMUNITIES
"1,519.52",Severn Trent Water,Neighbourhoods,Waste & Fleet Management,Abbey Road Depot,4001,Sewerage & Environmental,18/02/2019,Premises Related Expenditure,93533,NEIGHBOURHOODS
"1,518.64",Cleansing Service Group Ltd,Transformation,Property Services,Land Holdings,1884,Responsive Works - Buildings,11/03/2019,Premises Related Expenditure,93810,TRANSFORMATION
"1,506.56",British Gas Business,Neighbourhoods,Waste & Fleet Management,Abbey Road Depot,4001,Electricity,18/01/2019,Premises Related Expenditure,92749,NEIGHBOURHOODS
"1,500.00",Active Partners Trust Ltd,Communities,Community Development,Health Development,1058,Other Miscellaneous Expenses,11/01/2019,Supplies & Services,92666,COMMUNITIES
"1,500.00",Heb Chartered Surveyors,Transformation,Property Services,Land Holdings,1884,Legal & Professional Services,08/03/2019,Supplies & Services,94056,TRANSFORMATION
"1,454.00",A R Signs Ltd,Finance & Corporate Services,"Performance, Repn & Comms",Performance And Reputation,4710,External Printing,14/03/2019,Supplies & Services,93872,FINANCE & CORPORATE SERVICES
"1,437.33",Western Power Distribution (East Mids),Capital Expenditure,Transformation & Innovation,Cotgrave Masterplan,0303,Legal & Professional Services,07/01/2019,Supplies & Services,92335,CAPITAL
"1,432.95",Abacus Lighting Limited,Communities,Community Development,Gresham,8950,Responsive Works - Buildings,01/03/2019,Premises Related Expenditure,93525,COMMUNITIES
"1,422.12",Service Level Management Ltd,Transformation,Bsu,Central Mail,4871,Postages,11/01/2019,Supplies & Services,92185,TRANSFORMATION
"1,422.09",Edf Energy,Neighbourhoods,Leisure Contracts & Car Parks,Car Parks,1900,Electricity,20/02/2019,Premises Related Expenditure,92976,FINANCE & CORPORATE SERVICES
"1,406.00",Streetwise Environmental Ltd,Transformation,Property Services,"Colliers, Cotgrave",1898,Legal & Professional Services,18/02/2019,Supplies & Services,93378,TRANSFORMATION
"1,392.36",Calor Gas Limited,Communities,Community Development,West Park,8994,Gas,06/03/2019,Premises Related Expenditure,93675,COMMUNITIES
"1,390.00",Maltby & Company,Capital Expenditure,Transformation & Innovation,Cotgrave Masterplan,0303,Legal & Professional Services,26/02/2019,Supplies & Services,93695,CAPITAL
"1,371.35",West Leake Village Hall,Capital Expenditure,Communties,Capital Grant Funding,0651,Grants,31/01/2019,Supplies & Services,92651,CAPITAL
"1,371.35",West Leake Village Hall,Finance & Corporate Services,Financial Services,Suspense No Code,5224,Returned Creditors,06/03/2019,Returned Creditors,93534,FINANCE & CORPORATE SERVICES
"1,363.79",The South Wolds Academy And Sixth Form,Neighbourhoods,Leisure Contracts & Car Parks,Leisure Management Contract,1795,Gas,11/03/2019,Premises Related Expenditure,93870,FINANCE & CORPORATE SERVICES
"1,347.11",Adt Fire And Security Plc,Neighbourhoods,Waste & Fleet Management,Abbey Road Depot,4001,Service Maintenance Contracts,22/03/2019,Premises Related Expenditure,94153,NEIGHBOURHOODS
"1,339.17",Royal Mail Group Ltd,Transformation,Bsu,Central Mail,4871,Postages,20/02/2019,Supplies & Services,93369,TRANSFORMATION
"1,334.67",Live And Local Limited,Communities,Community Development,Arts,1550,Projects & Activities,31/01/2019,Supplies & Services,92971,COMMUNITIES
"1,334.67",Live And Local Limited,Communities,Community Development,Arts,1550,Projects & Activities,31/01/2019,Supplies & Services,92972,COMMUNITIES
"1,334.67",Live And Local Limited,Communities,Community Development,Arts,1550,Projects & Activities,31/01/2019,Supplies & Services,92973,COMMUNITIES
"1,318.56",Calor Gas Limited,Communities,Community Development,West Park,8994,Gas,25/01/2019,Premises Related Expenditure,92502,COMMUNITIES
"1,317.81",Telefonica Uk Limited,Transformation,Ict,Telephones,4870,Mobiles,14/03/2019,Supplies & Services,93859,TRANSFORMATION
"1,305.00",Ludlow Hill Mot Centre,Neighbourhoods,Environmental Health,Hackney Carriage/Private Hire,1031,Contractors-Transport,22/03/2019,Transport Related Expenditure,93752,NEIGHBOURHOODS
"1,304.62",Royal Mail Group Ltd,Transformation,Bsu,Central Mail,4871,Postages,11/01/2019,Supplies & Services,92332,TRANSFORMATION
"1,300.00",Capita Business Services Ltd,Finance & Corporate Services,Revenues & Benefits,Nndr,1038,Software,27/03/2019,Supplies & Services,94526,FINANCE & CORPORATE SERVICES
"1,300.00",Via East Midlands,Capital Expenditure,Communties,Play Areas/Facs For Old Childn,0664,Legal & Professional Services,26/02/2019,Supplies & Services,93603,CAPITAL
"1,295.00",Lexis Nexis Uk,Finance & Corporate Services,Democratic Services,Borough Council Elections,1021,Books & Publications,11/03/2019,Supplies & Services,93818,FINANCE & CORPORATE SERVICES
"1,286.56",Telefonica Uk Limited,Transformation,Ict,Telephones,4870,Mobiles,14/01/2019,Supplies & Services,92174,TRANSFORMATION
"1,285.00",Site Rescue (Leeds Office),Communities,Community Development,Arts,1550,Projects & Activities,20/03/2019,Supplies & Services,94486,COMMUNITIES
"1,268.16",Western Power Distribution (East Mids),Capital Expenditure,Transformation & Innovation,Cotgrave Masterplan,0303,Legal & Professional Services,18/01/2019,Supplies & Services,92726,CAPITAL
"1,265.00",Wordprint Limited,Neighbourhoods,Waste & Fleet Management,Fleet,8600,Tachograph Analysis,04/02/2019,Transport Related Expenditure,92860,NEIGHBOURHOODS
"1,263.14",Lex Leisure,Neighbourhoods,Leisure Contracts & Car Parks,Leisure Management Contract,1795,Responsive Works - Buildings,27/03/2019,Premises Related Expenditure,94343,FINANCE & CORPORATE SERVICES
"1,260.00",Lex Leisure,Transformation,Bsu,Business Support Unit,4805,Legal & Professional Services,26/02/2019,Supplies & Services,93166,TRANSFORMATION
"1,250.00",Pinders,Transformation,Property Services,Land Holdings,1884,Legal & Professional Services,27/03/2019,Supplies & Services,94684,TRANSFORMATION
"1,245.00",Institute Of Directors,Transformation,Human Resources,Corporate Training,4893,Subscriptions,18/01/2019,Supplies & Services,92788,TRANSFORMATION
"1,230.50",British Gas Business,Communities,Community Development,Gresham,8950,Electricity,20/03/2019,Premises Related Expenditure,94469,COMMUNITIES
"1,228.20",Havas People Ltd,Transformation,Property Services,Civic Centre Building,4719,Employee Advertising,11/01/2019,Employee Related Expenditure,91502,TRANSFORMATION
"1,216.88",Service Level Management Ltd,Transformation,Bsu,Central Mail,4871,Postages,29/01/2019,Supplies & Services,92442,TRANSFORMATION
"1,208.98",Frontline Recruitment Ltd,Neighbourhoods,Waste & Fleet Management,Waste Collection,8403,Agency Staff,14/01/2019,Employee Related Expenditure,92677,NEIGHBOURHOODS
"1,200.00",Lex Leisure,Neighbourhoods,Leisure Contracts & Car Parks,Edwalton Golf Courses,1400,Responsive Works - Buildings,27/03/2019,Premises Related Expenditure,94670,FINANCE & CORPORATE SERVICES
"1,200.00",Lex Leisure,Transformation,Bsu,Business Support Unit,4805,Legal & Professional Services,20/03/2019,Supplies & Services,93843,TRANSFORMATION
"1,200.00",Pythian Productions Ltd,Neighbourhoods,Environmental Health,Community Safety,1598,Projects & Activities,27/03/2019,Supplies & Services,94485,NEIGHBOURHOODS
"1,199.64",Corona Energy Retail 3 Ltd,Neighbourhoods,Waste & Fleet Management,Abbey Road Depot,4001,Electricity,26/03/2019,Premises Related Expenditure,94401,NEIGHBOURHOODS
"1,199.64",Corona Energy Retail 3 Ltd,Neighbourhoods,Waste & Fleet Management,Abbey Road Depot,4001,Gas,26/02/2019,Premises Related Expenditure,93598,NEIGHBOURHOODS
"1,199.63",Telefonica Uk Limited,Transformation,Ict,Telephones,4870,Mobiles,13/02/2019,Supplies & Services,92878,TRANSFORMATION
"1,189.00",Access Doors Ltd,Communities,Community Development,Rushcliffe Country Park,1375,Planned Maintenance Recharge,31/01/2019,Supplies & Services,92945,COMMUNITIES
"1,175.00",Nuthall Electrical Services Ltd,Transformation,Property Services,The Point,1886,Planned Maintenance Recharge,16/01/2019,Supplies & Services,92529,TRANSFORMATION
"1,170.62",Ppl Prs Ltd,Communities,Community Development,Arts,1550,Licences,20/02/2019,Supplies & Services,93081,COMMUNITIES
"1,170.25",Service Level Management Ltd,Transformation,Bsu,Central Mail,4871,Postages,13/02/2019,Supplies & Services,93300,TRANSFORMATION
"1,170.00",Nottinghamshire County Council,Neighbourhoods,Strategic Housing,Home Alarms,1137,Advertising,20/03/2019,Supplies & Services,94360,NEIGHBOURHOODS
"1,156.55",Central Fire Systems Ltd,Neighbourhoods,Leisure Contracts & Car Parks,Leisure Management Contract,1795,Responsive Works - Buildings,21/01/2019,Premises Related Expenditure,92437,FINANCE & CORPORATE SERVICES
"1,154.37",Service Level Management Ltd,Transformation,Bsu,Central Mail,4871,Postages,09/01/2019,Supplies & Services,92184,TRANSFORMATION
"1,144.68",British Gas Business,Neighbourhoods,Waste & Fleet Management,Abbey Road Depot,4001,Electricity,20/02/2019,Premises Related Expenditure,93491,NEIGHBOURHOODS
"1,138.39",Gedling Borough Council,Assets,Current Assets,Parish Election,7100,Election Fees,21/01/2019,Employee Related Expenditure,92866,FINANCE & CORPORATE SERVICES
"1,125.00",Socitm Limited,Transformation,Ict,It,4703,Subscriptions,06/02/2019,Supplies & Services,90840,TRANSFORMATION
"1,112.89",British Gas Business,Communities,Community Development,Gresham,8950,Electricity,02/01/2019,Premises Related Expenditure,92145,COMMUNITIES
"1,102.54",Royal Mail Group Ltd,Transformation,Bsu,Central Mail,4871,Postages,26/02/2019,Supplies & Services,93456,TRANSFORMATION
"1,100.00",Cabinet Office-Misc Receipts,Finance & Corporate Services,Financial Services,Financial Services,4705,External Audit Fee,18/02/2019,Supplies & Services,93522,FINANCE & CORPORATE SERVICES
"1,100.00",Cabinet Office-Misc Receipts,Finance & Corporate Services,Revenues & Benefits,Nndr,1038,External Audit Fee,18/02/2019,Supplies & Services,93522,FINANCE & CORPORATE SERVICES
"1,100.00",Derby Legal Services Ltd,Communities,Community Development,Rushcliffe Country Park,1375,Legal & Professional Services,07/01/2019,Supplies & Services,91848,COMMUNITIES
"1,099.19",The South Wolds Academy And Sixth Form,Neighbourhoods,Leisure Contracts & Car Parks,Leisure Management Contract,1795,Gas,04/02/2019,Premises Related Expenditure,92870,FINANCE & CORPORATE SERVICES
"1,098.55",Service Level Management Ltd,Transformation,Bsu,Central Mail,4871,Postages,09/01/2019,Supplies & Services,92183,TRANSFORMATION
"1,093.74",Corona Energy Retail 3 Ltd,Neighbourhoods,Waste & Fleet Management,Abbey Road Depot,4001,Gas,18/01/2019,Premises Related Expenditure,92745,NEIGHBOURHOODS
"1,091.58",Reach Publishing Services Limited,Communities,Planning & Growth,Development Control,1161,Advertising,07/01/2019,Supplies & Services,92407,COMMUNITIES
"1,087.68",The South Wolds Academy And Sixth Form,Neighbourhoods,Leisure Contracts & Car Parks,Leisure Management Contract,1795,Gas,27/03/2019,Premises Related Expenditure,94348,FINANCE & CORPORATE SERVICES
"1,075.00",Park Avenue,Communities,Planning & Growth,Development Control,1161,Agency Staff,27/03/2019,Employee Related Expenditure,94692,COMMUNITIES
"1,071.44",British Gas Business,Communities,Community Development,Gresham,8950,Electricity,20/02/2019,Premises Related Expenditure,93608,COMMUNITIES
"1,058.00",Cctv East Midlands Ltd,Transformation,Ict,It Rechargeable Costs,4722,Maintenance Contracts - S&S,26/03/2019,Supplies & Services,94665,TRANSFORMATION
"1,054.08",Corona Energy Retail 3 Ltd,Neighbourhoods,Waste & Fleet Management,Abbey Road Depot,4001,Gas,26/03/2019,Premises Related Expenditure,94402,NEIGHBOURHOODS
"1,049.00",Freeths Llp,Capital Expenditure,Transformation & Innovation,Cotgrave Phase 2,0387,Legal & Professional Services,08/03/2019,Supplies & Services,94102,CAPITAL
"1,046.00",Apw (Nottm) Ltd,Capital Expenditure,Neighbourhoods,Disabled Facilities Grant,0332,Grants,06/03/2019,Supplies & Services,94006,CAPITAL
"1,044.12",Reach Publishing Services Limited,Communities,Planning & Growth,Development Control,1161,Advertising,06/03/2019,Supplies & Services,93952,COMMUNITIES
"1,035.56",The South Wolds Academy And Sixth Form,Neighbourhoods,Leisure Contracts & Car Parks,Leisure Management Contract,1795,Gas,13/02/2019,Premises Related Expenditure,91869,FINANCE & CORPORATE SERVICES
"1,026.10",Electoral Reform Services,Finance & Corporate Services,Democratic Services,Electoral Registration,1026,External Printing,11/03/2019,Supplies & Services,94060,FINANCE & CORPORATE SERVICES
"1,025.00",Co-Operative Funeral Care,Neighbourhoods,Environmental Health,Public Health,1127,Welfare Burials,27/03/2019,Supplies & Services,94321,NEIGHBOURHOODS
"1,024.42",Vip System Limited,Neighbourhoods,Environmental Health,Hackney Carriage/Private Hire,1031,Other Equipment/Materials,18/02/2019,Supplies & Services,93458,NEIGHBOURHOODS
"1,008.85",Xerox (Uk) Limited,Transformation,Ict,Photocopiers,5017,Rental & Copy Charges,29/01/2019,Supplies & Services,92660,TRANSFORMATION
"1,000.00",Active Partners Trust Ltd,Communities,Community Development,Community Development,1581,Projects & Activities,11/01/2019,Supplies & Services,92666,COMMUNITIES
"1,000.00",Bsp Consulting,Capital Expenditure,Transformation & Innovation,Colliers Way Industrial Units,0368,Contractors-Third Party,01/03/2019,Third Party Payments,93473,CAPITAL
"1,000.00",Ep Consulting Building Services Engineers,Capital Expenditure,Transformation & Innovation,Property Heating Upgrades,0351,Contractors-Third Party,13/02/2019,Third Party Payments,93470,CAPITAL
"1,000.00",Maltby & Company,Capital Expenditure,Communties,Skate Park Facilities The Hook,0662,Contractors-Third Party,31/01/2019,Third Party Payments,92996,CAPITAL
"1,000.00",South Nottingham Academy,Communities,Community Development,Sports Development,1593,Projects & Activities,31/01/2019,Supplies & Services,93165,COMMUNITIES
996.66,Reach Publishing Services Limited,Communities,Planning & Growth,Development Control,1161,Advertising,06/02/2019,Supplies & Services,93363,COMMUNITIES
994.30,British Gas Business,Communities,Community Development,Gresham,8950,Electricity,25/01/2019,Premises Related Expenditure,92851,COMMUNITIES
980.00,Doreen Kelly,Neighbourhoods,Strategic Housing,Homeless B&B,1110,Housing-Emergency Accommodn,25/01/2019,Supplies & Services,92559,NEIGHBOURHOODS
977.00,Crimson Fire Risk Services Ltd,Transformation,Property Services,Arena Civic Centre,4718,Service Maintenance Contracts,11/03/2019,Premises Related Expenditure,93803,TRANSFORMATION
954.00,Creative Festivities Limited,Finance & Corporate Services,"Performance, Repn & Comms",Performance And Reputation,4710,Other Miscellaneous Expenses,21/01/2019,Supplies & Services,91895,FINANCE & CORPORATE SERVICES
950.00,Qsp Training,Neighbourhoods,Waste & Fleet Management,Waste Collection,8403,Legal & Professional Services,20/02/2019,Supplies & Services,93034,NEIGHBOURHOODS
949.20,Reach Publishing Services Limited,Communities,Planning & Growth,Development Control,1161,Advertising,07/01/2019,Supplies & Services,91915,COMMUNITIES
949.20,Reach Publishing Services Limited,Communities,Planning & Growth,Development Control,1161,Advertising,07/01/2019,Supplies & Services,92153,COMMUNITIES
943.74,Water Plus,Neighbourhoods,Waste & Fleet Management,Abbey Road Depot,4001,Water Charges,31/01/2019,Premises Related Expenditure,92985,NEIGHBOURHOODS
941.13,British Gas Business,Neighbourhoods,Waste & Fleet Management,Abbey Road Depot,4001,Electricity,27/03/2019,Premises Related Expenditure,94685,NEIGHBOURHOODS
941.13,British Gas Business,Transformation,Property Services,The Point,1886,Electricity,22/03/2019,Premises Related Expenditure,94508,TRANSFORMATION
940.00,Streetwise Environmental Ltd,Communities,Community Development,Environmental Promotion,1590,Legal & Professional Services,22/03/2019,Supplies & Services,94652,COMMUNITIES
931.90,Cleansing Service Group Ltd,Neighbourhoods,Waste & Fleet Management,Abbey Road Depot,4001,Sewerage & Environmental,18/02/2019,Premises Related Expenditure,92396,NEIGHBOURHOODS
930.00,Maltby & Company,Transformation,Property Services,"Colliers, Cotgrave",1898,Responsive Works - Buildings,23/01/2019,Premises Related Expenditure,92536,TRANSFORMATION
920.97,Complete Mailings,Neighbourhoods,Waste & Fleet Management,Waste Collection,8403,Contractors-Supplies & Servs,18/02/2019,Supplies & Services,93286,NEIGHBOURHOODS
920.00,Reach Publishing Services Limited,Communities,Planning & Growth,Development Control,1161,Advertising,21/01/2019,Supplies & Services,92793,COMMUNITIES
917.89,Service Level Management Ltd,Transformation,Bsu,Central Mail,4871,Postages,09/01/2019,Supplies & Services,92182,TRANSFORMATION
917.41,Bpp Proffesional Education Limited,Finance & Corporate Services,Financial Services,Financial Services,4705,Training Expenses,20/02/2019,Employee Related Expenditure,93703,FINANCE & CORPORATE SERVICES
905.36,The South Wolds Academy And Sixth Form,Neighbourhoods,Leisure Contracts & Car Parks,Leisure Management Contract,1795,Water Charges,01/03/2019,Premises Related Expenditure,92954,FINANCE & CORPORATE SERVICES
900.00,Ec Planning And Conservation Ltd,Communities,Planning & Growth,Development Control,1161,Agency Staff,11/01/2019,Employee Related Expenditure,92198,COMMUNITIES
900.00,Ec Planning And Conservation Ltd,Communities,Planning & Growth,Development Control,1161,Agency Staff,21/01/2019,Employee Related Expenditure,92512,COMMUNITIES
900.00,Lex Leisure,Transformation,Bsu,Business Support Unit,4805,Legal & Professional Services,25/01/2019,Supplies & Services,92388,TRANSFORMATION
900.00,Wellbeing Clinic Ltd,Transformation,Human Resources,Human Resources,4709,Occupational Health,26/03/2019,Employee Related Expenditure,94751,TRANSFORMATION
894.78,Streetwise Environmental Ltd,Transformation,Property Services,Open Spaces & Footpaths,1290,Responsive Works - Buildings,06/03/2019,Premises Related Expenditure,93684,TRANSFORMATION
891.00,A R Signs Ltd,Finance & Corporate Services,"Performance, Repn & Comms",Performance And Reputation,4710,External Printing,04/02/2019,Supplies & Services,92855,FINANCE & CORPORATE SERVICES
883.20,Coral Racing Limited,Finance & Corporate Services,Financial Services,Suspense No Code,5224,Returned Creditors,18/02/2019,Returned Creditors,93465,FINANCE & CORPORATE SERVICES
879.44,Bottomline Technologies Limited,Transformation,Ict,It Rechargeable Costs,4722,Maintenance Contracts - S&S,14/01/2019,Supplies & Services,92074,TRANSFORMATION
877.50,Eudaimonia,Communities,Community Development,Health Development,1058,Other Miscellaneous Expenses,20/03/2019,Supplies & Services,94494,COMMUNITIES
860.00,Sherwood Truck And Van Ltd,Neighbourhoods,Waste & Fleet Management,Fleet,8600,Diesel,07/01/2019,Transport Related Expenditure,92404,NEIGHBOURHOODS
854.26,Reach Publishing Services Limited,Communities,Planning & Growth,Development Control,1161,Advertising,26/03/2019,Supplies & Services,94658,COMMUNITIES
839.28,Bsp Consulting,Transformation,Property Services,Land Holdings,1884,Legal & Professional Services,07/01/2019,Supplies & Services,92175,TRANSFORMATION
831.17,Service Level Management Ltd,Transformation,Bsu,Central Mail,4871,Postages,27/03/2019,Supplies & Services,94235,TRANSFORMATION
831.13,Yu Energy,Transformation,Property Services,Bridgford Hall,1883,Gas,13/02/2019,Premises Related Expenditure,92960,TRANSFORMATION
827.34,Service Level Management Ltd,Transformation,Bsu,Central Mail,4871,Postages,29/01/2019,Supplies & Services,92441,TRANSFORMATION
825.00,Radcomm Uk Ltd,Neighbourhoods,Environmental Health,Community Safety,1598,Projects & Activities,27/02/2019,Supplies & Services,93495,NEIGHBOURHOODS
824.30,Lyreco,Communities,Community Development,Facilities Team,4714,Cleaning Equipment/Materials,22/03/2019,Supplies & Services,94072,COMMUNITIES
822.21,Service Level Management Ltd,Transformation,Bsu,Central Mail,4871,Postages,27/03/2019,Supplies & Services,94237,TRANSFORMATION
819.76,Reach Publishing Services Limited,Communities,Planning & Growth,Development Control,1161,Advertising,14/03/2019,Supplies & Services,94098,COMMUNITIES
818.70,Reach Publishing Services Limited,Communities,Planning & Growth,Development Control,1161,Advertising,31/01/2019,Supplies & Services,92993,COMMUNITIES
818.00,Spire Hydraulics Limited,Neighbourhoods,Waste & Fleet Management,Abbey Road Depot,4001,Responsive Works-Fixed Plant,11/03/2019,Premises Related Expenditure,94073,NEIGHBOURHOODS
815.00,Crimson Fire Risk Services Ltd,Transformation,Property Services,Arena Civic Centre,4718,Planned Maintenance Recharge,22/03/2019,Supplies & Services,94066,TRANSFORMATION
814.60,Print Image Network Ltd,Assets,Current Assets,Parish Election,7100,External Printing,21/01/2019,Supplies & Services,92664,FINANCE & CORPORATE SERVICES
806.46,Reach Publishing Services Limited,Communities,Planning & Growth,Development Control,1161,Advertising,16/01/2019,Supplies & Services,92601,COMMUNITIES
800.00,Nottinghamshire County Council,Finance & Corporate Services,Democratic Services,Members Services,1000,Grants,22/03/2019,Supplies & Services,94667,FINANCE & CORPORATE SERVICES
800.00,Trent Bridge Community Trust,Neighbourhoods,Environmental Health,Community Safety,1598,Projects & Activities,22/03/2019,Supplies & Services,94363,NEIGHBOURHOODS
799.48,Service Level Management Ltd,Transformation,Bsu,Central Mail,4871,Postages,27/03/2019,Supplies & Services,94233,TRANSFORMATION
799.00,Print Image Network Ltd,Finance & Corporate Services,Democratic Services,Electoral Registration,1026,External Printing,18/02/2019,Supplies & Services,93490,FINANCE & CORPORATE SERVICES
786.43,Service Level Management Ltd,Transformation,Bsu,Central Mail,4871,Postages,29/01/2019,Supplies & Services,92443,TRANSFORMATION
764.72,Xerox (Uk) Limited,Transformation,Ict,Photocopiers,5017,Rental & Copy Charges,29/01/2019,Supplies & Services,92661,TRANSFORMATION
761.00,Nla Media Access Limited,Finance & Corporate Services,Legal,Legal Services,4701,Licences,11/03/2019,Supplies & Services,93708,FINANCE & CORPORATE SERVICES
760.00,Ken Waller,Communities,Community Development,Young,1048,Other Miscellaneous Expenses,11/01/2019,Supplies & Services,92438,COMMUNITIES
757.00,Temperature Control Limited,Transformation,Property Services,Arena Civic Centre,4718,Responsive Works-Fixed Plant,01/03/2019,Premises Related Expenditure,93536,TRANSFORMATION
756.92,Ms Sharon Redrobe,Neighbourhoods,Environmental Health,Licences - General,1029,Legal & Professional Services,14/03/2019,Supplies & Services,94342,NEIGHBOURHOODS
754.74,Killgerm Chemicals Ltd,Neighbourhoods,Environmental Health,Pest Control,1062,Other Equipment/Materials,21/01/2019,Supplies & Services,92831,NEIGHBOURHOODS
750.00,Ade Regeneration,Transformation,Economic Regeneration,Economic Development,1887,Feasibility Study,18/02/2019,Supplies & Services,93289,TRANSFORMATION
750.00,Air Quality Data Management,Neighbourhoods,Environmental Health,Pollution Control,1050,Other Miscellaneous Expenses,29/01/2019,Supplies & Services,92686,NEIGHBOURHOODS
750.00,Oxford Brookes University,Communities,Planning & Growth,Development Control,1161,Training Expenses,20/03/2019,Employee Related Expenditure,94099,COMMUNITIES
743.30,As Enterprises Limited,Capital Expenditure,Transformation & Innovation,Cotgrave Masterplan,0303,Legal & Professional Services,01/03/2019,Supplies & Services,93950,CAPITAL
742.96,Maltby & Company,Communities,Community Development,Rushcliffe Country Park,1375,Responsive Works - Buildings,26/02/2019,Premises Related Expenditure,93881,COMMUNITIES
739.95,The South Wolds Academy And Sixth Form,Neighbourhoods,Leisure Contracts & Car Parks,Leisure Management Contract,1795,Electricity,26/02/2019,Premises Related Expenditure,93441,FINANCE & CORPORATE SERVICES
738.00,Reach Publishing Services Limited,Communities,Planning & Growth,Development Control,1161,Advertising,26/02/2019,Supplies & Services,93750,COMMUNITIES
735.00,A R Signs Ltd,Finance & Corporate Services,"Performance, Repn & Comms",Performance And Reputation,4710,External Printing,21/01/2019,Supplies & Services,92533,FINANCE & CORPORATE SERVICES
731.84,Service Level Management Ltd,Transformation,Bsu,Central Mail,4871,Postages,27/03/2019,Supplies & Services,94236,TRANSFORMATION
731.03,Via East Midlands,Neighbourhoods,Environmental Health,Community Safety,1598,Projects & Activities,20/03/2019,Supplies & Services,94492,NEIGHBOURHOODS
730.00,Lex Leisure,Neighbourhoods,Leisure Contracts & Car Parks,Edwalton Golf Courses,1400,Responsive Works - Buildings,27/03/2019,Premises Related Expenditure,94671,FINANCE & CORPORATE SERVICES
725.00,Asbestos Management Solutions Limited,Capital Expenditure,Transformation & Innovation,Cotgrave Phase 2,0387,Legal & Professional Services,27/03/2019,Supplies & Services,94326,CAPITAL
720.00,Fred Brown Car Repairs Limited,Neighbourhoods,Environmental Health,Hackney Carriage/Private Hire,1031,Legal & Professional Services,26/03/2019,Supplies & Services,94115,NEIGHBOURHOODS
720.00,Institute Of Directors,Finance & Corporate Services,Emt & Transformation,Executive Management Team,4721,Subscriptions,20/03/2019,Supplies & Services,94227,FINANCE & CORPORATE SERVICES
720.00,Wellbeing Clinic Ltd,Transformation,Human Resources,Human Resources,4709,Occupational Health,18/01/2019,Employee Related Expenditure,92668,TRANSFORMATION
717.21,Reach Publishing Services Limited,Communities,Planning & Growth,Development Control,1161,Advertising,20/02/2019,Supplies & Services,93526,COMMUNITIES
715.00,Rics,Transformation,Property Services,Property Services,4713,Subscriptions,23/01/2019,Supplies & Services,92672,TRANSFORMATION
710.00,Dta Electrical,Communities,Community Development,West Park,8994,Planned Maintenance Recharge,22/03/2019,Supplies & Services,94157,COMMUNITIES
708.00,Streetwise Environmental Ltd,Communities,Community Development,Facilities Team,4714,Other Miscellaneous Expenses,22/03/2019,Supplies & Services,93701,COMMUNITIES
703.00,Hill Bros (Nottingham) Ltd,Capital Expenditure,Neighbourhoods,Disabled Facilities Grant,0332,Grants,20/03/2019,Supplies & Services,94238,CAPITAL
700.00,Keyworth Camera Club,Finance & Corporate Services,Democratic Services,Members Services,1000,Grants,20/03/2019,Supplies & Services,94390,FINANCE & CORPORATE SERVICES
695.00,Staddon & Sons (Nottingham Ltd),Neighbourhoods,Strategic Housing,Hostel Hound Lodge,1111,Other Equipment/Materials,11/03/2019,Supplies & Services,94068,NEIGHBOURHOODS
690.00,Dta Electrical,Communities,Community Development,Alford Road,8940,Planned Maintenance Recharge,22/03/2019,Supplies & Services,94157,COMMUNITIES
686.50,Yu Energy,Transformation,Property Services,Bridgford Hall,1883,Gas,20/02/2019,Premises Related Expenditure,93358,TRANSFORMATION
675.72,The South Wolds Academy And Sixth Form,Neighbourhoods,Leisure Contracts & Car Parks,Leisure Management Contract,1795,Electricity,31/01/2019,Premises Related Expenditure,92781,FINANCE & CORPORATE SERVICES
675.00,Doreen Kelly,Neighbourhoods,Strategic Housing,Homeless B&B,1110,Housing-Emergency Accommodn,02/01/2019,Supplies & Services,92070,NEIGHBOURHOODS
665.95,The South Wolds Academy And Sixth Form,Neighbourhoods,Leisure Contracts & Car Parks,Leisure Management Contract,1795,Electricity,27/03/2019,Premises Related Expenditure,94484,FINANCE & CORPORATE SERVICES
660.00,Nuthall Electrical Services Ltd,Transformation,Property Services,The Point,1886,Planned Maintenance Recharge,16/01/2019,Supplies & Services,92528,TRANSFORMATION
660.00,Wellbeing Clinic Ltd,Transformation,Human Resources,Human Resources,4709,Occupational Health,14/03/2019,Employee Related Expenditure,94064,TRANSFORMATION
659.52,Service Level Management Ltd,Transformation,Bsu,Central Mail,4871,Postages,27/03/2019,Supplies & Services,94234,TRANSFORMATION
658.00,Local Government Association,Finance & Corporate Services,Emt & Transformation,Executive Management Team,4721,Training Expenses,02/01/2019,Employee Related Expenditure,91870,FINANCE & CORPORATE SERVICES
647.93,Frontline Recruitment Ltd,Neighbourhoods,Waste & Fleet Management,Waste Collection,8403,Agency Staff,13/02/2019,Employee Related Expenditure,92436,NEIGHBOURHOODS
640.00,Institute Of Directors,Finance & Corporate Services,Emt & Transformation,Executive Management Team,4721,Training Expenses,31/01/2019,Employee Related Expenditure,92728,FINANCE & CORPORATE SERVICES
636.97,Print Image Network Ltd,Finance & Corporate Services,Democratic Services,Electoral Registration,1026,External Printing,11/01/2019,Supplies & Services,92555,FINANCE & CORPORATE SERVICES
636.47,Nottinghamshire County Council,Neighbourhoods,Leisure Contracts & Car Parks,Leisure Management Contract,1795,Grounds Maintenance,23/01/2019,Premises Related Expenditure,92387,FINANCE & CORPORATE SERVICES
636.47,Nottinghamshire County Council,Neighbourhoods,Leisure Contracts & Car Parks,Leisure Management Contract,1795,Grounds Maintenance,13/02/2019,Premises Related Expenditure,93293,FINANCE & CORPORATE SERVICES
636.47,Nottinghamshire County Council,Neighbourhoods,Leisure Contracts & Car Parks,Leisure Management Contract,1795,Grounds Maintenance,20/02/2019,Premises Related Expenditure,93373,FINANCE & CORPORATE SERVICES
636.47,Nottinghamshire County Council,Neighbourhoods,Leisure Contracts & Car Parks,Leisure Management Contract,1795,Grounds Maintenance,08/03/2019,Premises Related Expenditure,94070,FINANCE & CORPORATE SERVICES
636.00,Attenborough Industrial Doors,Transformation,Property Services,Hollygate Lane Ph1 (Manvers),1895,Responsive Works - Buildings,27/03/2019,Premises Related Expenditure,94351,TRANSFORMATION
631.80,Ppl Prs Ltd,Communities,Community Development,Sir Julien Cahn Pavilion,8993,Licences,20/02/2019,Supplies & Services,93733,COMMUNITIES
631.00,A R Signs Ltd,Finance & Corporate Services,"Performance, Repn & Comms",Performance And Reputation,4710,External Printing,21/01/2019,Supplies & Services,92534,FINANCE & CORPORATE SERVICES
630.00,Fred Brown Car Repairs Limited,Neighbourhoods,Environmental Health,Hackney Carriage/Private Hire,1031,Legal & Professional Services,06/02/2019,Supplies & Services,93230,NEIGHBOURHOODS
627.17,Service Level Management Ltd,Transformation,Bsu,Central Mail,4871,Postages,13/02/2019,Supplies & Services,93299,TRANSFORMATION
621.97,Lyreco,Communities,Community Development,Facilities Team,4714,Cleaning Equipment/Materials,01/03/2019,Supplies & Services,93290,COMMUNITIES
620.24,Joe'S (Uk) Ltd,Transformation,Property Services,The Point,1886,Responsive Works - Buildings,20/03/2019,Premises Related Expenditure,94516,TRANSFORMATION
616.62,Alpha Heating (Chesterfield) Ltd,Communities,Community Development,West Park,8994,Planned Maintenance Recharge,11/03/2019,Supplies & Services,94228,COMMUNITIES
613.00,Radcliffe On Trent Parish Council,Communities,Community Development,Environmental Promotion,1590,Grants,09/01/2019,Supplies & Services,92435,COMMUNITIES
607.42,Yu Energy,Transformation,Property Services,Bridgford Hall,1883,Gas,31/01/2019,Premises Related Expenditure,92959,TRANSFORMATION
605.79,Yu Energy,Transformation,Property Services,Bridgford Hall,1883,Gas,20/03/2019,Premises Related Expenditure,94084,TRANSFORMATION
604.09,Service Level Management Ltd,Transformation,Bsu,Central Mail,4871,Postages,18/02/2019,Supplies & Services,93308,TRANSFORMATION
602.67,Eon,Capital Expenditure,Transformation & Innovation,Cotgrave Masterplan,0303,Electricity,20/02/2019,Premises Related Expenditure,93457,CAPITAL
600.00,Adt Fire And Security Plc,Neighbourhoods,Strategic Housing,Hostel Hound Lodge,1111,Service Maintenance Contracts,27/03/2019,Premises Related Expenditure,94509,NEIGHBOURHOODS
600.00,Ashfield District Council,Transformation,Human Resources,Corporate Training,4893,Subscriptions,29/01/2019,Supplies & Services,92652,TRANSFORMATION
600.00,Ashfield District Council,Transformation,Human Resources,Corporate Training,4893,Subscriptions,01/03/2019,Supplies & Services,93288,TRANSFORMATION
600.00,Cookson & Son,Neighbourhoods,Waste & Fleet Management,Abbey Road Depot,4001,Service Maintenance Contracts,06/02/2019,Premises Related Expenditure,93152,NEIGHBOURHOODS
600.00,Ken Waller,Communities,Community Development,Young - European Project,1044,Other Miscellaneous Expenses,11/01/2019,Supplies & Services,92438,COMMUNITIES
600.00,Mr E Elliott,Communities,Community Development,Environmental Promotion,1590,Grants,14/03/2019,Supplies & Services,93954,COMMUNITIES
600.00,Mr Timothy Pitt-Payne Qc,Finance & Corporate Services,Financial Services,Corporate Management,4895,Legal & Professional Services,20/03/2019,Supplies & Services,93985,FINANCE & CORPORATE SERVICES
600.00,The Nottingham Hoods Basketball Club,Finance & Corporate Services,Democratic Services,Members Services,1000,Grants,26/03/2019,Supplies & Services,94381,FINANCE & CORPORATE SERVICES
597.00,Nottinghamshire County Council,Finance & Corporate Services,"Performance, Repn & Comms",Performance And Reputation,4710,External Printing,14/03/2019,Supplies & Services,94313,FINANCE & CORPORATE SERVICES
592.80,Jak Water Systems Ltd,Finance & Corporate Services,Financial Services,Suspense No Code,5224,Returned Creditors,11/01/2019,Returned Creditors,92679,FINANCE & CORPORATE SERVICES
590.42,Adt Fire And Security Plc,Communities,Community Development,Rushcliffe Country Park,1375,Maintenance Contracts - S&S,26/02/2019,Supplies & Services,93713,COMMUNITIES
589.57,Integrity Communications Ltd,Capital Expenditure,Transformation & Innovation,Technical Infrastructure,0603,Computer Hardware,14/03/2019,Supplies & Services,94067,CAPITAL
582.00,Park Hill Training,Communities,Community Development,Rushcliffe Country Park,1375,Training Expenses,04/02/2019,Employee Related Expenditure,92863,COMMUNITIES
578.81,The South Wolds Academy And Sixth Form,Neighbourhoods,Leisure Contracts & Car Parks,Leisure Management Contract,1795,Water Charges,31/01/2019,Premises Related Expenditure,92911,FINANCE & CORPORATE SERVICES
575.00,The Becket School,Communities,Community Development,Community Development,1581,Other Miscellaneous Expenses,13/02/2019,Supplies & Services,93092,COMMUNITIES
570.00,Dta Electrical,Neighbourhoods,Waste & Fleet Management,Abbey Road Depot,4001,Responsive Works - Buildings,26/03/2019,Premises Related Expenditure,94100,NEIGHBOURHOODS
570.00,Fred Brown Car Repairs Limited,Neighbourhoods,Environmental Health,Hackney Carriage/Private Hire,1031,Legal & Professional Services,06/02/2019,Supplies & Services,93233,NEIGHBOURHOODS
569.52,Reach Publishing Services Limited,Communities,Planning & Growth,Development Control,1161,Advertising,04/02/2019,Supplies & Services,93163,COMMUNITIES
569.52,Reach Publishing Services Limited,Communities,Planning & Growth,Development Control,1161,Advertising,14/03/2019,Supplies & Services,94329,COMMUNITIES
566.98,Corona Energy Retail 3 Ltd,Neighbourhoods,Strategic Housing,Hostel Hound Lodge,1111,Gas,18/02/2019,Premises Related Expenditure,93516,NEIGHBOURHOODS
562.00,Bingham & District Audio Magazine,Finance & Corporate Services,Democratic Services,Members Services,1000,Grants,16/01/2019,Supplies & Services,92654,FINANCE & CORPORATE SERVICES
560.00,A R Signs Ltd,Communities,Community Development,Bridgford Park,8927,Responsive Works - Buildings,07/01/2019,Premises Related Expenditure,92337,COMMUNITIES
551.73,Water Plus,Communities,Community Development,Sir Julien Cahn Pavilion,8993,Water Charges,16/01/2019,Premises Related Expenditure,92371,COMMUNITIES
550.00,Leeza Surman,Neighbourhoods,Environmental Health,Food Hygiene,1054,Contractors-Supplies & Servs,29/01/2019,Supplies & Services,92779,NEIGHBOURHOODS
544.57,British Gas Business,Communities,Community Development,Alford Road,8940,Gas,02/01/2019,Premises Related Expenditure,91949,COMMUNITIES
539.00,Newenglish Design Limited,Capital Expenditure,Transformation & Innovation,Multi Service Centre,0348,Legal & Professional Services,07/01/2019,Supplies & Services,92336,CAPITAL
537.90,Bt Telephone Payment Centre,Transformation,Ict,Telephones,4870,Telephone Rental,14/01/2019,Supplies & Services,92552,TRANSFORMATION
530.00,Dta Electrical,Transformation,Property Services,The Point,1886,Planned Maintenance Recharge,26/03/2019,Supplies & Services,94656,TRANSFORMATION
530.00,East Midlands Markets And Events Ltd,Transformation,Property Services,Bingham Market Stalls,1880,Legal & Professional Services,01/03/2019,Supplies & Services,93849,TRANSFORMATION
529.00,Rics,Transformation,Property Services,Property Services,4713,Professional Subscriptions,08/03/2019,Employee Related Expenditure,93983,TRANSFORMATION
528.54,Service Level Management Ltd,Transformation,Bsu,Central Mail,4871,Postages,26/02/2019,Supplies & Services,93298,TRANSFORMATION
521.30,Certas Energy T/A Pace Fuelcare,Neighbourhoods,Waste & Fleet Management,Fleet,8600,Gas Oil,14/01/2019,Transport Related Expenditure,92687,NEIGHBOURHOODS
520.75,Clearwater Technology Ltd,Transformation,Property Services,Arena Civic Centre,4718,Service Maintenance Contracts,18/02/2019,Premises Related Expenditure,93383,TRANSFORMATION
517.72,Arden Winch & Co Ltd,Neighbourhoods,Waste & Fleet Management,Waste Collection,8403,Protective Clothing/Uniforms,01/03/2019,Supplies & Services,93510,NEIGHBOURHOODS
517.00,Corona Energy Retail 3 Ltd,Neighbourhoods,Strategic Housing,Hostel Hound Lodge,1111,Gas,29/01/2019,Premises Related Expenditure,92744,NEIGHBOURHOODS
515.62,Frontline Communications Group Limited,Transformation,Customer Services,Customer Services,4807,Other Services,31/01/2019,Supplies & Services,92530,TRANSFORMATION
514.67,Corona Energy Retail 3 Ltd,Communities,Community Development,Lutterell Hall,8990,Gas,20/02/2019,Premises Related Expenditure,93517,COMMUNITIES
495.00,Mallard Consultancy Ltd,Neighbourhoods,Environmental Health,Housing Standards,1129,Legal & Professional Services,18/02/2019,Supplies & Services,93144,NEIGHBOURHOODS
495.00,Mallard Consultancy Ltd,Neighbourhoods,Environmental Health,Public Health,1127,Legal & Professional Services,18/02/2019,Supplies & Services,93144,NEIGHBOURHOODS
471.42,Ppl Prs Ltd,Communities,Community Development,Lutterell Hall,8990,Licences,20/02/2019,Supplies & Services,93733,COMMUNITIES
460.00,Access Doors Ltd,Communities,Community Development,West Park,8994,Service Maintenance Contracts,01/03/2019,Premises Related Expenditure,93854,COMMUNITIES
447.65,Ppl Prs Ltd,Communities,Community Development,Gamston Community Hall,8992,Licences,20/02/2019,Supplies & Services,93733,COMMUNITIES
418.00,Dta Electrical,Transformation,Property Services,Arena Civic Centre,4718,Planned Maintenance Recharge,26/02/2019,Supplies & Services,93375,TRANSFORMATION
390.00,Nuthall Electrical Services Ltd,Transformation,Property Services,Bingham Market Stalls,1880,Planned Maintenance Recharge,16/01/2019,Supplies & Services,92529,TRANSFORMATION
365.66,Ppl Prs Ltd,Communities,Community Development,West Park,8994,Licences,20/02/2019,Supplies & Services,93733,COMMUNITIES
350.00,Dta Electrical,Communities,Community Development,West Park,8994,Planned Maintenance Recharge,31/01/2019,Supplies & Services,92585,COMMUNITIES
347.50,Clearwater Technology Ltd,Communities,Community Development,Gresham,8950,Service Maintenance Contracts,18/02/2019,Premises Related Expenditure,93383,COMMUNITIES
335.00,Access Doors Ltd,Communities,Community Development,Rushcliffe Country Park,1375,Service Maintenance Contracts,01/03/2019,Premises Related Expenditure,93854,COMMUNITIES
326.66,Dta Electrical,Transformation,Property Services,Land Holdings,1884,Planned Maintenance Recharge,31/01/2019,Supplies & Services,92585,TRANSFORMATION
325.00,Dta Electrical,Communities,Community Development,Rushcliffe Country Park,1375,Responsive Works - Buildings,16/01/2019,Premises Related Expenditure,92584,COMMUNITIES
320.00,Dta Electrical,Communities,Community Development,Lutterell Hall,8990,Responsive Works - Buildings,26/03/2019,Premises Related Expenditure,94100,COMMUNITIES
303.34,Dta Electrical,Neighbourhoods,Leisure Contracts & Car Parks,Car Parks,1900,Planned Maintenance Recharge,31/01/2019,Supplies & Services,92585,FINANCE & CORPORATE SERVICES
284.76,Reach Publishing Services Limited,Communities,Planning & Growth,Conservation,1171,Advertising,14/03/2019,Supplies & Services,94329,COMMUNITIES
272.88,Reach Publishing Services Limited,Communities,Planning & Growth,Conservation,1171,Advertising,31/01/2019,Supplies & Services,92993,COMMUNITIES
260.00,Access Doors Ltd,Communities,Community Development,Gresham,8950,Service Maintenance Contracts,01/03/2019,Premises Related Expenditure,93854,COMMUNITIES
225.00,Clearwater Technology Ltd,Neighbourhoods,Waste & Fleet Management,Abbey Road Depot,4001,Service Maintenance Contracts,18/02/2019,Premises Related Expenditure,93383,NEIGHBOURHOODS
220.00,Dta Electrical,Communities,Community Development,Alford Road,8940,Planned Maintenance Recharge,26/02/2019,Supplies & Services,93375,COMMUNITIES
213.75,Clearwater Technology Ltd,Communities,Community Development,Alford Road,8940,Service Maintenance Contracts,18/02/2019,Premises Related Expenditure,93383,COMMUNITIES
213.75,Clearwater Technology Ltd,Neighbourhoods,Strategic Housing,Hostel Hound Lodge,1111,Service Maintenance Contracts,18/02/2019,Premises Related Expenditure,93383,NEIGHBOURHOODS
211.20,Reach Publishing Services Limited,Communities,Planning & Growth,Conservation,1171,Advertising,26/02/2019,Supplies & Services,93750,COMMUNITIES
210.00,Dta Electrical,Communities,Community Development,Rushcliffe Country Park,1375,Planned Maintenance Recharge,22/03/2019,Supplies & Services,94157,COMMUNITIES
205.00,Dta Electrical,Communities,Community Development,West Park,8994,Responsive Works - Buildings,16/01/2019,Premises Related Expenditure,92584,COMMUNITIES
198.00,Dta Electrical,Neighbourhoods,Strategic Housing,Hostel Hound Lodge,1111,Planned Maintenance Recharge,26/02/2019,Supplies & Services,93375,NEIGHBOURHOODS
191.25,Clearwater Technology Ltd,Communities,Community Development,West Park,8994,Service Maintenance Contracts,18/02/2019,Premises Related Expenditure,93383,COMMUNITIES
190.00,Crimson Fire Risk Services Ltd,Communities,Community Development,West Park,8994,Service Maintenance Contracts,13/02/2019,Premises Related Expenditure,93096,COMMUNITIES
189.86,Reach Publishing Services Limited,Communities,Planning & Growth,Conservation,1171,Advertising,26/03/2019,Supplies & Services,94658,COMMUNITIES
176.00,Dta Electrical,Communities,Community Development,West Park,8994,Planned Maintenance Recharge,26/02/2019,Supplies & Services,93375,COMMUNITIES
146.75,Clearwater Technology Ltd,Communities,Community Development,Lutterell Hall,8990,Service Maintenance Contracts,18/02/2019,Premises Related Expenditure,93383,COMMUNITIES
135.00,Access Doors Ltd,Communities,Community Development,Alford Road,8940,Service Maintenance Contracts,01/03/2019,Premises Related Expenditure,93854,COMMUNITIES
135.00,Clearwater Technology Ltd,Communities,Community Development,Rushcliffe Country Park,1375,Service Maintenance Contracts,18/02/2019,Premises Related Expenditure,93383,COMMUNITIES
132.00,Dta Electrical,Communities,Community Development,Rushcliffe Country Park,1375,Planned Maintenance Recharge,26/02/2019,Supplies & Services,93375,COMMUNITIES
130.00,Derby Legal Services Ltd,Vat Control Account,Vat Control Acount,Vat Control Account,5060,Vat Adjustments,07/01/2019,Vat Adjustments,91848,FINANCE & CORPORATE SERVICES
123.75,Clearwater Technology Ltd,Communities,Community Development,Sir Julien Cahn Pavilion,8993,Service Maintenance Contracts,18/02/2019,Premises Related Expenditure,93383,COMMUNITIES
112.50,Clearwater Technology Ltd,Communities,Community Development,Gamston Community Hall,8992,Service Maintenance Contracts,18/02/2019,Premises Related Expenditure,93383,COMMUNITIES
110.00,Access Doors Ltd,Communities,Community Development,Lutterell Hall,8990,Service Maintenance Contracts,01/03/2019,Premises Related Expenditure,93854,COMMUNITIES
95.00,Crimson Fire Risk Services Ltd,Communities,Community Development,Alford Road,8940,Service Maintenance Contracts,13/02/2019,Premises Related Expenditure,93096,COMMUNITIES
95.00,Crimson Fire Risk Services Ltd,Communities,Community Development,Gamston Community Hall,8992,Service Maintenance Contracts,13/02/2019,Premises Related Expenditure,93096,COMMUNITIES
95.00,Crimson Fire Risk Services Ltd,Communities,Community Development,Gresham,8950,Service Maintenance Contracts,13/02/2019,Premises Related Expenditure,93096,COMMUNITIES
95.00,Crimson Fire Risk Services Ltd,Communities,Community Development,Lutterell Hall,8990,Service Maintenance Contracts,13/02/2019,Premises Related Expenditure,93096,COMMUNITIES
95.00,Crimson Fire Risk Services Ltd,Communities,Community Development,Sir Julien Cahn Pavilion,8993,Service Maintenance Contracts,13/02/2019,Premises Related Expenditure,93096,COMMUNITIES
94.92,Reach Publishing Services Limited,Communities,Planning & Growth,Conservation,1171,Advertising,07/01/2019,Supplies & Services,91915,COMMUNITIES
89.61,Reach Publishing Services Limited,Communities,Planning & Growth,Conservation,1171,Advertising,20/02/2019,Supplies & Services,93526,COMMUNITIES
85.00,Access Doors Ltd,Communities,Community Development,Sir Julien Cahn Pavilion,8993,Service Maintenance Contracts,01/03/2019,Premises Related Expenditure,93854,COMMUNITIES
81.98,Reach Publishing Services Limited,Communities,Planning & Growth,Conservation,1171,Advertising,14/03/2019,Supplies & Services,94098,COMMUNITIES
76.66,Reach Publishing Services Limited,Communities,Planning & Growth,Conservation,1171,Advertising,21/01/2019,Supplies & Services,92793,COMMUNITIES
60.00,Access Doors Ltd,Communities,Community Development,Gamston Community Hall,8992,Service Maintenance Contracts,01/03/2019,Premises Related Expenditure,93854,COMMUNITIES
60.00,Access Doors Ltd,Transformation,Property Services,The Point,1886,Service Maintenance Contracts,01/03/2019,Premises Related Expenditure,93854,TRANSFORMATION
41.46,Edenred,Transformation,Human Resources,Human Resources,4709,Flexible Benefits,16/01/2019,Employee Related Expenditure,92647,TRANSFORMATION
41.46,Edenred,Transformation,Human Resources,Human Resources,4709,Flexible Benefits,18/02/2019,Employee Related Expenditure,93484,TRANSFORMATION
41.46,Edenred,Transformation,Human Resources,Human Resources,4709,Flexible Benefits,14/03/2019,Employee Related Expenditure,94253,TRANSFORMATION
40.00,Dta Electrical,Communities,Community Development,Lutterell Hall,8990,Responsive Works - Buildings,16/01/2019,Premises Related Expenditure,92584,COMMUNITIES
30.00,Dta Electrical,Communities,Community Development,Sir Julien Cahn Pavilion,8993,Responsive Works - Buildings,16/01/2019,Premises Related Expenditure,92584,COMMUNITIES
22.00,Dta Electrical,Communities,Community Development,Gamston Community Hall,8992,Planned Maintenance Recharge,26/02/2019,Supplies & Services,93375,COMMUNITIES
22.00,Dta Electrical,Communities,Community Development,Lutterell Hall,8990,Planned Maintenance Recharge,26/02/2019,Supplies & Services,93375,COMMUNITIES
22.00,Dta Electrical,Communities,Community Development,Sir Julien Cahn Pavilion,8993,Planned Maintenance Recharge,26/02/2019,Supplies & Services,93375,COMMUNITIES
8.96,Local Government Association,Finance & Corporate Services,Financial Services,Corporate Management,4895,Training Expenses,02/01/2019,Employee Related Expenditure,91590,FINANCE & CORPORATE SERVICES
5.13,Bt Telephone Payment Centre,Transformation,Ict,Telephones,4870,Telephone Call Charges,14/01/2019,Supplies & Services,92552,TRANSFORMATION
-711.60,Carole Crookes,Liabilities,Current Liabilities,Creditors Control Account,5101,Sub Contractors Sums Deducted,31/01/2019,Sub Contractors Sums Deducted,92560,FINANCE & CORPORATE SERVICES
"18,655,850.00",,,,,,,,,,
